Workbook

Sheet NOTES (hidden)
A2: The model has actual and test data to illustrate the workings of the model. | D2: ='Model update'!B5 -> 2022
A4: Issue | B4: Location | C4: Item | D4: Comment
A6: 1 | B6: 'Model update'!B21 | C6: CPI | D6: ="Updated June "&D2-1&" CPI for "&D2 -> Updated June 2021 CPI for 2022 | E6: NOTE: This worksheet is programmed to update for each year - use as checklist and note any placeholders or changes
E7: NOTE: Worksheet names in this file are programmed to update each year once each worksheet is accessed and a cell is selected
A8: =A6+1 -> 2 | B8: 'Model update'!B36 | C8: ="Xt for "&D2 -> Xt for 2022 | D8: ="Updated for "&D2&" annual update " -> Updated for 2022 annual update
A10: =A8+1 -> 3 | B10: 'Model update'!B46 | C10: ="Pass Through Amount for "&D2 -> Pass Through Amount for 2022 | D10: NIL for 2022
A12: =A10+1 -> 4 | B12: 'Model update'!B58 | C12: Real Pre-tax WACC (rptw) | D12: ="Updated for "&$D$2&" annual update" -> Updated for 2022 annual update
A14: =A12+1 -> 5 | B14: ="Prop"&D2&"DistTar!E8:E165" -> Prop2022DistTar!E8:E165 | C14: =D2-1&" tariffs" -> 2021 tariffs | D14: ="Updated from "&D2-1&" model" -> Updated from 2021 model
A16: =A14+1 -> 6 | B16: ARS!B6:B14 | C16: =D2-1&" ARS tariffs" -> 2021 ARS tariffs | D16: ="Updated from "&D2-1&" model" -> Updated from 2021 model
A18: =A16+1 -> 7 | B18: The following is test data to illustrate the workings of the model. | D18: Input data required from DNSPs
B19: ="Prop"&D2&"DistTar!D8:D165" -> Prop2022DistTar!D8:D165 | C19: ="Proposed "&D2&" Tariffs" -> Proposed 2022 Tariffs
B20: ="Prop"&D2&"DistTar!F8:F165" -> Prop2022DistTar!F8:F165 | C20: ="Actual "&D2-2&" Volumes" -> Actual 2020 Volumes
B22: ARS!C6:C14 | C22: ="Proposed "&D2&" Ancillary Reference Services Charges" -> Proposed 2022 Ancillary Reference Services Charges | D22: Calculated using formula

Sheet Model update
A3: Tariff Approval Template for | B3: MultiNet
A5: Calendar year commencing | B5: 2022
A7: t | B7: =B5 -> 2022
A8: t-1 | B8: =B7-1 -> 2021
A9: t-2 | B9: 2020
A10: t-3 | B10: 2019
A13: Please fill in yellow highlighted cells where appropriate
A15: CPI
A17: CPI Index June 2016 | B17: 108.6
A18: CPI Index June 2017 | B18: 110.7
A19: CPI Index June 2018 | B19: 113
A20: CPI Index June 2019 | B20: 114.8
A21: CPI Index June 2020 | B21: 114.4
A22: CPI Index June 2021 | B22: 118.8
A25: ="CPI Index June " &$B$10 -> CPI Index June 2019 | B25: =VLOOKUP(A25,A$17:D$22,2,FALSE) -> 114.8
A26: ="CPI Index June " &$B$9 -> CPI Index June 2020 | B26: =VLOOKUP(A26,A$17:D$22,2,FALSE) -> 114.4
A27: ="CPI Index June " &$B$8 -> CPI Index June 2021 | B27: =VLOOKUP(A27,A$17:D$22,2,FALSE) -> 118.8
A29: ="CPI " &$B$8 -> CPI 2021 | B29: =B26/B25-1 -> -0.003484320557
A30: ="CPI " &$B$5 -> CPI 2022 | B30: =B27/B26-1 -> 0.03846153846
A33: ="Xt for "&B$5 -> Xt for 2022
A34: 2019 | B34: -0.01775734485
A35: 2020 | B35: -0.01173652192
A36: 2021 | B36: -0.009559692326
A37: 2022 | B37: -0.01001495322
A40: ="Xt for "&B$5 -> Xt for 2022 | B40: =VLOOKUP(B5,A34:B38,2,FALSE) -> -0.01001495322
A43: Pass Through Amounts : PT (t)
A44: 2019 | B44: 0
A45: 2020 | B45: 0
A46: 2021 | B46: 0
A47: 2022 | B47: 0
A50: ="Pass Through Amount for "&B$5 -> Pass Through Amount for 2022 | B50: =VLOOKUP(B5,A44:B48,2,FALSE) -> 0
A51: The Pass Through Amount is to include an amount that reflects the time value of money between incurring the costs and recovering the costs
A52: and excludes any amounts already passed through in reference tariffs.
A55: Pre-tax real WACC for distribution tariffs
A58: Pretax real WACCD | B58: 0.03657695736

Sheet Prop2022DistTar
B1: ="Tariff Approval - "&'Model update'!B3 -> Tariff Approval - MultiNet | C1: ="Prop"&'Model update'!B5&"DistTar" -> Prop2022DistTar
B3: ="PROPOSED "&'Model update'!$B$5&" DISTRIBUTION TARIFFS" -> PROPOSED 2022 DISTRIBUTION TARIFFS
B5: Proposed tariff name | C5: Existing name | D5: ="Prop "&'Model update'!B7&" Tariff" -> Prop 2022 Tariff | E5: ="Exist "&'Model update'!$B$8&" Tariff" -> Exist 2021 Tariff | F5: ="Actual "&'Model update'!B9&" Volumes" -> Actual 2020 Volumes | G5: Prop Tar Revenue | H5: Exist Tar Revenue
B6: Tariff V - Multinet Residential | C6: Tariff V - Multinet Residential
B7: 1 January - 31 December | C7: 1 January - 31 December
B8: Fixed Charge | C8: Fixed Charge | D8: 0.183 | E8: 0.183 | F8: 689383 | G8: =D8*$F8*365 -> 46047337.48 | H8: =E8*$F8*365 -> 46047337.48
B9: Peak 0 - 0.05 | C9: Peak 0 - 0.05 | D9: 9.6172 | E9: 8.8806 | F9: 3668242.672 | G9: =D9*$F9 -> 35278223.42 | H9: 32576195.87
B10: Peak 0.05 - 0.1 | C10: Peak 0.05 - 0.1 | D10: 6.3226 | E10: 5.8383 | F10: 3035296.116 | G10: 19190963.22 | H10: 17720969.31
B11: Peak 0.1 -0.15 | C11: Peak 0.1 -0.15 | D11: 3.0185 | E11: 3.0185 | F11: 2622212.374 | G11: 7915148.05 | H11: 7915148.05
B12: Peak 0.15 - 0.25 | C12: Peak 0.15 - 0.25 | D12: 1.5276 | E12: 1.5276 | F12: 4252284.796 | G12: 6495790.254 | H12: 6495790.254
B13: Peak >0.25 | C13: Peak >0.25 | D13: 1.1329 | E13: 1.1329 | F13: 8080820.351 | G13: 9154761.376 | H13: 9154761.376
B14: May Shoulder 0 - 0.05 | C14: May Shoulder 0 - 0.05 | D14: 9.179 | E14: 8.476 | F14: 928731.7101 | G14: 8524828.367 | H14: 7871929.975
B15: May Shoulder 0.05 - 0.1 | C15: May Shoulder 0.05 - 0.1 | D15: 6.0064 | E15: 5.5464 | F15: 758383.4497 | G15: 4555154.352 | H15: 4206297.965
B16: May Shoulder 0.1 -0.15 | C16: May Shoulder 0.1 -0.15 | D16: 2.8686 | E16: 2.8686 | F16: 642917.088 | G16: 1844271.959 | H16: 1844271.959
B17: May Shoulder 0.15 - 0.25 | C17: May Shoulder 0.15 - 0.25 | D17: 1.4513 | E17: 1.4513 | F17: 994914.6874 | G17: 1443919.686 | H17: 1443919.686
B18: May Shoulder >0.25 | C18: May Shoulder >0.25 | D18: 1.0913 | E18: 1.0913 | F18: 1589898.009 | G18: 1735055.697 | H18: 1735055.697
B19: Oct Shoulder 0 - 0.05 | C19: Oct Shoulder 0 - 0.05 | D19: 9.179 | E19: 8.476 | F19: 892680.2649 | G19: 8193912.152 | H19: 7566357.925
B20: Oct Shoulder 0.05 - 0.1 | C20: Oct Shoulder 0.05 - 0.1 | D20: 6.0064 | E20: 5.5464 | F20: 626786.3309 | G20: 3764729.418 | H20: 3476407.706
B21: Oct Shoulder 0.1 -0.15 | C21: Oct Shoulder 0.1 -0.15 | D21: 2.8686 | E21: 2.8686 | F21: 425681.2449 | G21: 1221109.219 | H21: 1221109.219
B22: Oct Shoulder 0.15 - 0.25 | C22: Oct Shoulder 0.15 - 0.25 | D22: 1.4513 | E22: 1.4513 | F22: 471225.7807 | G22: 683889.9755 | H22: 683889.9755
B23: Oct Shoulder >0.25 | C23: Oct Shoulder >0.25 | D23: 1.0913 | E23: 1.0913 | F23: 471364.974 | G23: 514400.5961 | H23: 514400.5961
B24: Off Peak 0 - 0.05 | C24: Off Peak 0 - 0.05 | D24: 8.2129 | E24: 7.5839 | F24: 4713253.241 | G24: 38709477.54 | H24: 35744841.25
B25: Off Peak 0.05 - 0.1 | C25: Off Peak 0.05 - 0.1 | D25: 5.3743 | E25: 4.9627 | F25: 2201464.395 | G25: 11831330.1 | H25: 10925207.35
B26: Off Peak 0.1 -0.15 | C26: Off Peak 0.1 -0.15 | D26: 2.5666 | E26: 2.5666 | F26: 1113629.263 | G26: 2858240.868 | H26: 2858240.868
B27: Off Peak 0.15 - 0.25 | C27: Off Peak 0.15 - 0.25 | D27: 1.2985 | E27: 1.2985 | F27: 1108339.06 | G27: 1439178.269 | H27: 1439178.269
B28: Off Peak >0.25 | C28: Off Peak >0.25 | D28: 0.9766 | E28: 0.9766 | F28: 1449295.003 | G28: =D28*$F28 -> 1415381.5 | H28: =E28*$F28 -> 1415381.5
B29: Tariff V - Multinet Non-Residential | C29: Tariff V - Multinet Non-Residential
B30: 1 January - 31 December | C30: 1 January - 31 December
B31: Fixed Charge | C31: Fixed Charge | D31: 0.3018 | E31: 0.3018 | F31: 16019 | G31: =D31*$F31*365 -> 1764604.983 | H31: =E31*$F31*365 -> 1764604.983
B32: Peak 0 - 0.25 | C32: Peak 0 - 0.25 | D32: 4.392 | E32: 4.0556 | F32: 278106.3585 | G32: =D32*$F32 -> 1221443.127 | H32: 1127888.148
B33: Peak 0.25 - 1 | C33: Peak 0.25 - 1 | D33: 2.5434 | E33: 2.3486 | F33: 422636.4949 | G33: 1074933.661 | H33: 992604.0719
B34: Peak 1 - 1.5 | C34: Peak 1 - 1.5 | D34: 1.4092 | E34: 1.4092 | F34: 157292.19 | G34: 221656.1541 | H34: 221656.1541
B35: Peak 1.5 - 5 | C35: Peak 1.5 - 5 | D35: 0.7842 | E35: 0.7842 | F35: 540414.172 | G35: 423792.7937 | H35: 423792.7937
B36: Peak >5 | C36: Peak >5 | D36: 0.2617 | E36: 0.2617 | F36: 684466.8979 | G36: 179124.9872 | H36: 179124.9872
B37: May Shoulder 0 - 0.25 | C37: May Shoulder 0 - 0.25 | D37: 4.0307 | E37: 3.722 | F37: 70320.3961 | G37: 283440.4206 | H37: 261732.5143
B38: May Shoulder 0.25 - 1 | C38: May Shoulder 0.25 - 1 | D38: 2.2892 | E38: 2.1139 | F38: 104300.1929 | G38: 238764.0016 | H38: 220480.1778
B39: May Shoulder 1 - 1.5 | C39: May Shoulder 1 - 1.5 | D39: 1.3387 | E39: 1.3387 | F39: 38641.799 | G39: 51729.77632 | H39: 51729.77632
B40: May Shoulder 1.5 - 5 | C40: May Shoulder 1.5 - 5 | D40: 0.7641 | E40: 0.7641 | F40: 131161.901 | G40: 100220.8086 | H40: 100220.8086
B41: May Shoulder >5 | C41: May Shoulder >5 | D41: 0.2353 | E41: 0.2353 | F41: 153575.196 | G41: 36136.24362 | H41: 36136.24362
B42: Oct Shoulder 0 - 0.25 | C42: Oct Shoulder 0 - 0.25 | D42: 4.0307 | E42: 3.722 | F42: 63361.862 | G42: =D42*$F42 -> 255392.6572 | H42: 235832.8504
B43: Oct Shoulder 0.25 - 1 | C43: Oct Shoulder 0.25 - 1 | D43: 2.2892 | E43: 2.1139 | F43: 90194.642 | G43: 206473.5745 | H43: 190662.4537
B44: Oct Shoulder 1 - 1.5 | C44: Oct Shoulder 1 - 1.5 | D44: 1.3387 | E44: 1.3387 | F44: 32912.192 | G44: 44059.55143 | H44: 44059.55143
B45: Oct Shoulder 1.5 - 5 | C45: Oct Shoulder 1.5 - 5 | D45: 0.7641 | E45: 0.7641 | F45: 105941.144 | G45: 80949.62813 | H45: 80949.62813
B46: Oct Shoulder >5 | C46: Oct Shoulder >5 | D46: 0.2353 | E46: 0.2353 | F46: 103108.61 | G46: 24261.45593 | H46: 24261.45593
B47: Off Peak 0 - 0.25 | C47: Off Peak 0 - 0.25 | D47: 3.6556 | E47: 3.3756 | F47: 350814.5931 | G47: 1282437.827 | H47: 1184209.74
B48: Off Peak 0.25 - 1 | C48: Off Peak 0.25 - 1 | D48: 2.2104 | E48: 2.0411 | F48: 514448.6151 | G48: 1137137.219 | H48: 1050041.068
B49: Off Peak 1 - 1.5 | C49: Off Peak 1 - 1.5 | D49: 1.2218 | E49: 1.2218 | F49: 189200.5041 | G49: 231165.1759 | H49: 231165.1759
B50: Off Peak 1.5 - 5 | C50: Off Peak 1.5 - 5 | D50: 0.7404 | E50: 0.7404 | F50: 566251.0881 | G50: 419252.3056 | H50: 419252.3056
B51: Off Peak >5 | C51: Off Peak >5 | D51: 0.2091 | E51: 0.2091 | F51: 470692.5401 | G51: =D51*$F51 -> 98421.81013 | H51: =E51*$F51 -> 98421.81013
B52: Tariff V - Yarra Valley Residential | C52: Tariff V - Yarra Valley Residential
B53: 1 January - 31 December | C53: 1 January - 31 December
B54: Fixed Charge | C54: Fixed Charge | D54: 0.183 | E54: 0.183 | F54: 5638 | G54: =D54*$F54*365 -> 376590.21 | H54: =E54*$F54*365 -> 376590.21
B55: Peak 0 - 0.05 | C55: Peak 0 - 0.05 | D55: 11.461 | E55: 10.5832 | F55: 30033.3359 | G55: =D55*$F55 -> 344212.0627 | H55: 317848.8005
B56: Peak 0.05 - 0.1 | C56: Peak 0.05 - 0.1 | D56: 8.4896 | E56: 7.8394 | F56: 25004.321 | G56: 212276.6836 | H56: 196018.874
B57: Peak 0.1 -0.15 | C57: Peak 0.1 -0.15 | D57: 5.6037 | E57: 5.6037 | F57: 21739.4231 | G57: 121821.2052 | H57: 121821.2052
B58: Peak 0.15 - 0.25 | C58: Peak 0.15 - 0.25 | D58: 4.4204 | E58: 4.4204 | F58: 34627.1502 | G58: 153065.8547 | H58: 153065.8547
B59: Peak >0.25 | C59: Peak >0.25 | D59: 4.1198 | E59: 4.1198 | F59: 55331.1882 | G59: 227953.4291 | H59: 227953.4291
B60: May Shoulder 0 - 0.05 | C60: May Shoulder 0 - 0.05 | D60: 11.0778 | E60: 10.2293 | F60: 7551.619 | G60: 83655.32496 | H60: 77247.77624
B61: May Shoulder 0.05 - 0.1 | C61: May Shoulder 0.05 - 0.1 | D61: 8.2388 | E61: 7.6078 | F61: 6169.088 | G61: 50825.88221 | H61: 46933.18769
B62: May Shoulder 0.1 -0.15 | C62: May Shoulder 0.1 -0.15 | D62: 5.4839 | E62: 5.4839 | F62: 5246.021 | G62: 28768.65456 | H62: 28768.65456
B63: May Shoulder 0.15 - 0.25 | C63: May Shoulder 0.15 - 0.25 | D63: 4.3597 | E63: 4.3597 | F63: 8121.991 | G63: 35409.44416 | H63: 35409.44416
B64: May Shoulder >0.25 | C64: May Shoulder >0.25 | D64: 4.0742 | E64: 4.0742 | F64: 12074.0659 | G64: 49192.15929 | H64: 49192.15929
B65: Oct Shoulder 0 - 0.05 | C65: Oct Shoulder 0 - 0.05 | D65: 11.0778 | E65: 10.2293 | F65: 7363.714 | G65: 81573.75095 | H65: 75325.63962
B66: Oct Shoulder 0.05 - 0.1 | C66: Oct Shoulder 0.05 - 0.1 | D66: 8.2388 | E66: 7.6078 | F66: 5322.821 | G66: 43853.65765 | H66: 40494.9576
B67: Oct Shoulder 0.1 -0.15 | C67: Oct Shoulder 0.1 -0.15 | D67: 5.4839 | E67: 5.4839 | F67: 3620.2161 | G67: 19852.90307 | H67: 19852.90307
B68: Oct Shoulder 0.15 - 0.25 | C68: Oct Shoulder 0.15 - 0.25 | D68: 4.3597 | E68: 4.3597 | F68: 3501.4 | G68: 15265.05358 | H68: 15265.05358
B69: Oct Shoulder >0.25 | C69: Oct Shoulder >0.25 | D69: 4.0742 | E69: 4.0742 | F69: 2828.465 | G69: 11523.7321 | H69: 11523.7321
B70: Off Peak 0 - 0.05 | C70: Off Peak 0 - 0.05 | D70: 10.3114 | E70: 9.5216 | F70: 34344.24 | G70: 354137.1963 | H70: 327012.1156
B71: Off Peak 0.05 - 0.1 | C71: Off Peak 0.05 - 0.1 | D71: 7.7373 | E71: 7.1447 | F71: 15187.3799 | G71: 117509.3145 | H71: 108509.2732
B72: Off Peak 0.1 -0.15 | C72: Off Peak 0.1 -0.15 | D72: 5.2443 | E72: 5.2443 | F72: 7932.643 | G72: 41601.15968 | H72: 41601.15968
B73: Off Peak 0.15 - 0.25 | C73: Off Peak 0.15 - 0.25 | D73: 4.2385 | E73: 4.2385 | F73: 7063.3771 | G73: 29938.12384 | H73: 29938.12384
B74: Off Peak >0.25 | C74: Off Peak >0.25 | D74: 4.02 | E74: 4.02 | F74: 8312.806 | G74: =D74*$F74 -> 33417.48012 | H74: =E74*$F74 -> 33417.48012
B75: Tariff V - Yarra Valley Non-Residential | C75: Tariff V - Yarra Valley Non-Residential
B76: 1 January - 31 December | C76: 1 January - 31 December
B77: Fixed Charge | C77: Fixed Charge | D77: 0.3004 | E77: 0.3004 | F77: 71 | G77: =D77*$F77*365 -> 7784.866 | H77: =E77*$F77*365 -> 7784.866
B78: Peak 0 - 0.25 | C78: Peak 0 - 0.25 | D78: 7.3718 | E78: 6.8072 | F78: 1439.967 | G78: =D78*$F78 -> 10615.14873 | H78: 9802.143362
B79: Peak 0.25 - 1 | C79: Peak 0.25 - 1 | D79: 5.5446 | E79: 5.1199 | F79: 1829.804 | G79: 10145.53126 | H79: 9368.4135
B80: Peak 1 - 1.5 | C80: Peak 1 - 1.5 | D80: 4.3555 | E80: 4.3555 | F80: 507.568 | G80: 2210.712424 | H80: 2210.712424
B81: Peak 1.5 - 5 | C81: Peak 1.5 - 5 | D81: 3.8468 | E81: 3.8468 | F81: 1473.808 | G81: 5669.444614 | H81: 5669.444614
B82: Peak >5 | C82: Peak >5 | D82: 3.4214 | E82: 3.4214 | F82: 4175.209 | G82: 14285.06007 | H82: 14285.06007
B83: May Shoulder 0 - 0.25 | C83: May Shoulder 0 - 0.25 | D83: 7.0776 | E83: 6.5355 | F83: 362.354 | G83: 2564.59667 | H83: 2368.164567
B84: May Shoulder 0.25 - 1 | C84: May Shoulder 0.25 - 1 | D84: 5.3376 | E84: 4.9288 | F84: 480.126 | G84: 2562.720538 | H84: 2366.445029
B85: May Shoulder 1 - 1.5 | C85: May Shoulder 1 - 1.5 | D85: 4.298 | E85: 4.298 | F85: 128.135 | G85: 550.72423 | H85: 550.72423
B86: May Shoulder 1.5 - 5 | C86: May Shoulder 1.5 - 5 | D86: 3.8304 | E86: 3.8304 | F86: 362.267 | G86: 1387.627517 | H86: 1387.627517
B87: May Shoulder >5 | C87: May Shoulder >5 | D87: 3.4001 | E87: 3.4001 | F87: 1026.586 | G87: 3490.495059 | H87: 3490.495059
B88: Oct Shoulder 0 - 0.25 | C88: Oct Shoulder 0 - 0.25 | D88: 7.0776 | E88: 6.5355 | F88: 330.993 | G88: 2342.636057 | H88: 2163.204751
B89: Oct Shoulder 0.25 - 1 | C89: Oct Shoulder 0.25 - 1 | D89: 5.3376 | E89: 4.9288 | F89: 381.014 | G89: 2033.700326 | H89: 1877.941803
B90: Oct Shoulder 1 - 1.5 | C90: Oct Shoulder 1 - 1.5 | D90: 4.298 | E90: 4.298 | F90: 86.654 | G90: 372.438892 | H90: 372.438892
B91: Oct Shoulder 1.5 - 5 | C91: Oct Shoulder 1.5 - 5 | D91: 3.8304 | E91: 3.8304 | F91: 248.749 | G91: 952.8081696 | H91: 952.8081696
B92: Oct Shoulder >5 | C92: Oct Shoulder >5 | D92: 3.4001 | E92: 3.4001 | F92: 588.967 | G92: 2002.546697 | H92: 2002.546697
B93: Off Peak 0 - 0.25 | C93: Off Peak 0 - 0.25 | D93: 6.772 | E93: 6.2533 | F93: 1803.521 | G93: 12213.44421 | H93: 11277.95787
B94: Off Peak 0.25 - 1 | C94: Off Peak 0.25 - 1 | D94: 5.2737 | E94: 4.8698 | F94: 2078.274 | G94: 10960.19359 | H94: 10120.77873
B95: Off Peak 1 - 1.5 | C95: Off Peak 1 - 1.5 | D95: 4.2028 | E95: 4.2028 | F95: 396.327 | G95: 1665.683116 | H95: 1665.683116
B96: Off Peak 1.5 - 5 | C96: Off Peak 1.5 - 5 | D96: 3.8112 | E96: 3.8112 | F96: 1604.842 | G96: 6116.37383 | H96: 6116.37383
B97: Off Peak >5 | C97: Off Peak >5 | D97: 3.3787 | E97: 3.3787 | F97: 2332.514 | G97: 7880.865052 | H97: 7880.865052
B98: Tariff V - South Gippsland Residential | C98: Tariff V - South Gippsland Residential
B99: 1 January - 31 December | C99: 1 January - 31 December
B100: Fixed Charge | C100: Fixed Charge | D100: 0.183 | E100: 0.183 | F100: 6089 | G100: =D100*$F100*365 -> 406714.755 | H100: =E100*$F100*365 -> 406714.755
B101: Peak 0 - 0.05 | C101: Peak 0 - 0.05 | D101: 12.4732 | E101: 11.5179 | F101: 28150.191 | G101: =D101*$F101 -> 351122.9624 | H101: 324231.0849
B102: Peak 0.05 - 0.1 | C102: Peak 0.05 - 0.1 | D102: 9.2921 | E102: 8.5804 | F102: 21031.599 | G102: 195427.7211 | H102: 180459.5321
B103: Peak 0.1 -0.15 | C103: Peak 0.1 -0.15 | D103: 6.2062 | E103: 6.2062 | F103: 16634.9011 | G103: 103239.5232 | H103: 103239.5232
B104: Peak 0.15 - 0.25 | C104: Peak 0.15 - 0.25 | D104: 4.9497 | E104: 4.9497 | F104: 22433.632 | G104: 111039.7483 | H104: 111039.7483
B105: Peak >0.25 | C105: Peak >0.25 | D105: 4.6306 | E105: 4.6306 | F105: 20193.1209 | G105: 93506.26564 | H105: 93506.26564
B106: May Shoulder 0 - 0.05 | C106: May Shoulder 0 - 0.05 | D106: 12.0661 | E106: 11.1419 | F106: 7110.4911 | G106: 85795.89666 | H106: 79224.38079
B107: May Shoulder 0.05 - 0.1 | C107: May Shoulder 0.05 - 0.1 | D107: 9.0259 | E107: 8.3346 | F107: 5082.948 | G107: 45878.18035 | H107: 42364.3384
B108: May Shoulder 0.1 -0.15 | C108: May Shoulder 0.1 -0.15 | D108: 6.079 | E108: 6.079 | F108: 3711.84 | G108: 22564.27536 | H108: 22564.27536
B109: May Shoulder 0.15 - 0.25 | C109: May Shoulder 0.15 - 0.25 | D109: 4.8853 | E109: 4.8853 | F109: 4109.521 | G109: 20076.24294 | H109: 20076.24294
B110: May Shoulder >0.25 | C110: May Shoulder >0.25 | D110: 4.582 | E110: 4.582 | F110: 2632.139 | G110: 12060.4609 | H110: 12060.4609
B111: Oct Shoulder 0 - 0.05 | C111: Oct Shoulder 0 - 0.05 | D111: 12.0661 | E111: 11.1419 | F111: 6328.292 | G111: 76357.8041 | H111: 70509.19663
B112: Oct Shoulder 0.05 - 0.1 | C112: Oct Shoulder 0.05 - 0.1 | D112: 9.0259 | E112: 8.3346 | F112: 3278.887 | G112: 29594.90617 | H112: 27328.21159
B113: Oct Shoulder 0.1 -0.15 | C113: Oct Shoulder 0.1 -0.15 | D113: 6.079 | E113: 6.079 | F113: 1675.311 | G113: 10184.21557 | H113: 10184.21557
B114: Oct Shoulder 0.15 - 0.25 | C114: Oct Shoulder 0.15 - 0.25 | D114: 4.8853 | E114: 4.8853 | F114: 1322.083 | G114: 6458.77208 | H114: 6458.77208
B115: Oct Shoulder >0.25 | C115: Oct Shoulder >0.25 | D115: 4.582 | E115: 4.582 | F115: 1043.606 | G115: 4781.802692 | H115: 4781.802692
B116: Off Peak 0 - 0.05 | C116: Off Peak 0 - 0.05 | D116: 11.2525 | E116: 10.3907 | F116: 29133.198 | G116: 327821.3105 | H116: 302714.3205
B117: Off Peak 0.05 - 0.1 | C117: Off Peak 0.05 - 0.1 | D117: 8.4933 | E117: 7.8428 | F117: 9497.6002 | G117: 80665.96778 | H117: 74487.77885
B118: Off Peak 0.1 -0.15 | C118: Off Peak 0.1 -0.15 | D118: 5.8247 | E118: 5.8247 | F118: 4404.836 | G118: 25656.84825 | H118: 25656.84825
B119: Off Peak 0.15 - 0.25 | C119: Off Peak 0.15 - 0.25 | D119: 4.7565 | E119: 4.7565 | F119: 3785.987 | G119: 18008.04717 | H119: 18008.04717
B120: Off Peak >0.25 | C120: Off Peak >0.25 | D120: 4.4852 | E120: 4.4852 | F120: 3777.24 | G120: =D120*$F120 -> 16941.67685 | H120: =E120*$F120 -> 16941.67685
B121: Tariff V - South Gippsland Non-Residential | C121: Tariff V - South Gippsland Non-Residential
B122: 1 January - 31 December | C122: 1 January - 31 December
B123: Fixed Charge | C123: Fixed Charge | D123: 0.3018 | E123: 0.3018 | F123: 118 | G123: =D123*$F123*365 -> 12998.526 | H123: =E123*$F123*365 -> 12998.526
B124: Peak 0 - 0.25 | C124: Peak 0 - 0.25 | D124: 8.1307 | E124: 7.508 | F124: 2452.187 | G124: =D124*$F124 -> 19937.99684 | H124: 18411.02
B125: Peak 0.25 - 1 | C125: Peak 0.25 - 1 | D125: 6.1649 | E125: 5.6927 | F125: 4544.489 | G125: 28016.32024 | H125: 25870.41253
B126: Peak 1 - 1.5 | C126: Peak 1 - 1.5 | D126: 4.8807 | E126: 4.8807 | F126: 1929.584 | G126: 9417.720629 | H126: 9417.720629
B127: Peak 1.5 - 5 | C127: Peak 1.5 - 5 | D127: 4.3408 | E127: 4.3408 | F127: 7929.113 | G127: 34418.69371 | H127: 34418.69371
B128: Peak >5 | C128: Peak >5 | D128: 3.889 | E128: 3.889 | F128: 11791.799 | G128: 45858.30631 | H128: 45858.30631
B129: May Shoulder 0 - 0.25 | C129: May Shoulder 0 - 0.25 | D129: 7.8184 | E129: 7.2196 | F129: 586.504 | G129: 4585.522874 | H129: 4234.324278
B130: May Shoulder 0.25 - 1 | C130: May Shoulder 0.25 - 1 | D130: 5.9449 | E130: 5.4896 | F130: 1023.108 | G130: 6082.274749 | H130: 5616.453677
B131: May Shoulder 1 - 1.5 | C131: May Shoulder 1 - 1.5 | D131: 4.8199 | E131: 4.8199 | F131: 424.142 | G131: 2044.322026 | H131: 2044.322026
B132: May Shoulder 1.5 - 5 | C132: May Shoulder 1.5 - 5 | D132: 4.3232 | E132: 4.3232 | F132: 1865.411 | G132: 8064.544835 | H132: 8064.544835
B133: May Shoulder >5 | C133: May Shoulder >5 | D133: 3.8662 | E133: 3.8662 | F133: 2087.732 | G133: 8071.589458 | H133: 8071.589458
B134: Oct Shoulder 0 - 0.25 | C134: Oct Shoulder 0 - 0.25 | D134: 7.8184 | E134: 7.2196 | F134: 563.321 | G134: 4404.268906 | H134: 4066.952292
B135: Oct Shoulder 0.25 - 1 | C135: Oct Shoulder 0.25 - 1 | D135: 5.9449 | E135: 5.4896 | F135: 1039.076 | G135: 6177.202912 | H135: 5704.11161
B136: Oct Shoulder 1 - 1.5 | C136: Oct Shoulder 1 - 1.5 | D136: 4.8199 | E136: 4.8199 | F136: 427.292 | G136: 2059.504711 | H136: 2059.504711
B137: Oct Shoulder 1.5 - 5 | C137: Oct Shoulder 1.5 - 5 | D137: 4.3232 | E137: 4.3232 | F137: 1759.251 | G137: 7605.593923 | H137: 7605.593923
B138: Oct Shoulder >5 | C138: Oct Shoulder >5 | D138: 3.8662 | E138: 3.8662 | F138: 2222.767 | G138: 8593.661775 | H138: 8593.661775
B139: Off Peak 0 - 0.25 | C139: Off Peak 0 - 0.25 | D139: 7.4941 | E139: 6.9201 | F139: 3063.13 | G139: 22955.40253 | H139: 21197.16591
B140: Off Peak 0.25 - 1 | C140: Off Peak 0.25 - 1 | D140: 5.877 | E140: 5.4269 | F140: 5807.898 | G140: 34133.01655 | H140: 31518.88166
B141: Off Peak 1 - 1.5 | C141: Off Peak 1 - 1.5 | D141: 4.7186 | E141: 4.7186 | F141: 2613.961 | G141: 12334.23637 | H141: 12334.23637
B142: Off Peak 1.5 - 5 | C142: Off Peak 1.5 - 5 | D142: 4.3028 | E142: 4.3028 | F142: 10002.494 | G142: 43038.73118 | H142: 43038.73118
B143: Off Peak >5 | C143: Off Peak >5 | D143: 3.8436 | E143: 3.8436 | F143: 10375.37 | G143: 39878.77213 | H143: 39878.77213
B145: Tariff D - Multinet | C145: Tariff D - Multinet
B146: 0 - 50 | C146: 0 - 50 | D146: 621.909 | E146: 598.9217 | F146: 2886.22 | G146: =D146*$F146 -> 1794966.194 | H146: =E146*$F146 -> 1728619.789
B147: > 50 | C147: > 50 | D147: 105.8207 | E147: 101.9014 | F147: 452.51 | G147: =D147*$F147 -> 47884.92496 | H147: =E147*$F147 -> 46111.40251
B149: Tariff L- Multinet Non-Residential | C149: Tariff L- Multinet Non-Residential
B150: 1 January - 31 December | C150: 1 January - 31 December
B151: Fixed Charge | C151: Fixed Charge | D151: 0 | E151: 0 | F151: 12 | G151: =D151*$F151*365 -> 0 | H151: =E151*$F151*365 -> 0
B152: Peak < 5 | C152: Peak < 5 | D152: 0.6416 | E152: 0.6416 | F152: 6188.06 | G152: =D152*$F152 -> 3970.259296 | H152: 3970.259296
B153: Peak > 5 | C153: Peak > 5 | D153: 0.1376 | E153: 0.1376 | F153: 15999.67 | G153: 2201.554592 | H153: 2201.554592
B154: May Shoulder < 5 | C154: May Shoulder < 5 | D154: 0.5688 | E154: 0.5688 | F154: 1550.69 | G154: 882.032472 | H154: 882.032472
B155: May Shoulder > 5 | C155: May Shoulder > 5 | D155: 0.1292 | E155: 0.1292 | F155: 3335.2 | G155: 430.90784 | H155: 430.90784
B156: Oct Shoulder < 5 | C156: Oct Shoulder < 5 | D156: 0.5688 | E156: 0.5688 | F156: 1550.05 | G156: 881.66844 | H156: 881.66844
B157: Oct Shoulder > 5 | C157: Oct Shoulder > 5 | D157: 0.1292 | E157: 0.1292 | F157: 3101.96 | G157: 400.773232 | H157: 400.773232
B158: Off Peak < 5 | C158: Off Peak < 5 | D158: 0.451 | E158: 0.451 | F158: 8714.34 | G158: 3930.16734 | H158: 3930.16734
B159: Off Peak > 5 | C159: Off Peak > 5 | D159: 0.1236 | E159: 0.1026 | F159: 13148.11 | G159: =D159*$F159 -> 1625.106396 | H159: =E159*$F159 -> 1348.996086
B160: Tariff L - Multinet | C160: Tariff L - Multinet
B161: Rolling 12 month max [$/GJ (MHQ/d)] | C161: Rolling 12 month max [$/GJ (MHQ/d)] | D161: 0.5965 | E161: 0.5965 | F161: 35.8 | G161: =D161*$F161*365 -> 7794.4655 | H161: =E161*$F161*365 -> 7794.4655
B162: Peak Demand [$/GJ (MHQ/d)] | C162: Peak Demand [$/GJ (MHQ/d)] | D162: 1.7846 | E162: 1.7846 | F162: 25.81 | G162: =D162*$F162*122 -> 5619.384172 | H162: =E162*$F162*122 -> 5619.384172
B163: Tariff D - Multinet South Gippsland | C163: Tariff D - Multinet South Gippsland
B164: 0 - 50 | C164: 0 - 50 | D164: 671.9697 | E164: 647.0819 | F164: 100 | G164: =D164*$F164 -> 67196.97 | H164: =E164*$F164 -> 64708.19
B165: > 50 | C165: > 50 | D165: 114.3231 | E165: 110.0889 | F165: 62.2 | G165: =D165*$F165 -> 7110.89682 | H165: =E165*$F165 -> 6847.52958
B168: Total Revenue | C168: Total Revenue | G168: =SUM(G8:G166) -> 229082221.5 | H168: =SUM(H8:H166) -> 218410325.8

Sheet 2022TarContForm
B1: ="Tariff Approval - "&'Model update'!B3 -> Tariff Approval - MultiNet | C1: ='Model update'!B5&"TarContForm" -> 2022TarContForm
B3: ='Model update'!$B$5&" TARIFF CONTROL FORMULA" -> 2022 TARIFF CONTROL FORMULA
B6: CPI
B8: ="CPI Sept"&'Model update'!$B$9 -> CPI Sept2020 | C8: ='Model update'!B26 -> 114.4
B9: ="CPI Sept"&'Model update'!$B$8 -> CPI Sept2021 | C9: ='Model update'!B27 -> 118.8
B11: ="CPI "&'Model update'!$B$5 -> CPI 2022 | C11: =(C9/C8-1) -> 0.03846153846
B15: X factor
B17: ="X "&'Model update'!$B$5 -> X 2022 | C17: ='Model update'!B40 -> -0.01001495322
B20: Pass Through Factor (PT)
B22: pass through
B23: ="AP (t) "&'Model update'!$B$7 -> AP (t) 2022 | C23: ='Model update'!B50 -> 0
B25: Revenue
B26: ∑∑p(t-1)q(t-2) | C26: =C41 -> 218410325.8
B28: PT' (t-1) | C28: 0
B29: ="PT' "&'Model update'!$B$5 -> PT' 2022 | C29: =IF(C26="",0,(C23)/((1+C11)*(1-C17)*C26)) -> 0
B31: ="PTt "&'Model update'!$B$5 -> PTt 2022 | C31: =((1+C29)/(1+C28))-1 -> 0
B36: ='Model update'!$B$5&" Distribution price control" -> 2022 Distribution price control
B38: Average price movement allowed | C38: =(1+C11)*(1-C17)*(1+C31) -> 1.048861682
B40: Proposed distribution tariff revenue | C40: =IF(Prop2022DistTar!G168=0,"",Prop2022DistTar!G168) -> 229082221.5
B41: Existing distribution tariff revenue | C41: =IF(Prop2022DistTar!H168=0,"",Prop2022DistTar!H168) -> 218410325.8
B42: Average price movement | C42: =IF(C40="","",C40/C41) -> 1.048861681
B44: =IF(C40="","",IF(C38>=C42,"DISTRIBUTION PRICE CONTROL FORMULA COMPLIANT","DISTRIBUTION PRICE CONTROL FORMULA BREACHED")) -> DISTRIBUTION PRICE CONTROL FORMULA COMPLIANT

Sheet 2022RebalContForm
B1: ="Tariff Approval - "&'Model update'!B3 -> Tariff Approval - MultiNet | C1: ='Model update'!B5&"RebalContForm" -> 2022RebalContForm
B3: ='Model update'!$B$5&" REBALANCING CONTROL FORMULA" -> 2022 REBALANCING CONTROL FORMULA
B6: Rebalancing control
B8: ="CPI "&'Model update'!$B$5 -> CPI 2022 | C8: ='2022TarContForm'!C11 -> 0.03846153846
B9: ="Y "&'Model update'!$B$5 -> Y 2022 | C9: 0.02
B10: ="PTt "&'Model update'!$B$5 -> PTt 2022 | C10: ='2022TarContForm'!C31 -> 0
B11: ="Xt "&'Model update'!$B$5 -> Xt 2022 | C11: ='2022TarContForm'!C17 -> -0.01001495322
B13: Rebalancing control | C13: =(1+C8)*(1+C9)*(1+C10)*(1-C11) -> 1.069838916
B17: Rebalancing control summary
C18: Existing | D18: Proposed | E18: Movement | F18: Assessment
B19: =B32 -> Tariff V - Multinet Residential | C19: =C53 -> 202856692.3 | D19: =C54 -> 212817103.5 | E19: =IF(C19=0,0,D19/C19) -> 1.049100728 | F19: =IF(E19=0,"",IF($C$13<=E19,"Breached","Compliant")) -> Compliant
B20: =B62 -> Tariff V - Yarra Valley Residential | C20: =C83 -> 2333790.034 | D20: =C84 -> 2432443.282 | E20: 1.04227169 | F20: =IF(E20=0,"",IF($C$13<=E20,"Breached","Compliant")) -> Compliant
B21: =B92 -> Tariff V - South Gippsland Residential | C21: =C113 -> 1952551.478 | D21: =C114 -> 2043897.383 | E21: 1.046782841 | F21: Compliant
B22: =B122 -> Tariff V - Multinet Non-Residential | C22: =C143 -> 8938826.698 | D22: =C144 -> 9375398.16 | E22: 1.048839907 | F22: Compliant
B23: =B152 -> Tariff V - Yarra Valley Non-Residential | C23: =C173 -> 103714.6953 | D23: =C174 -> 107807.6171 | E23: 1.039463277 | F23: Compliant
B24: =B182 -> Tariff V - South Gippsland Non-Residential | C24: =C203 -> 351003.525 | D24: =C204 -> 360676.2087 | E24: 1.027557227 | F24: Compliant
B25: =B212 -> Tariff D - Multinet | C25: =C227 -> 1774731.191 | D25: =C228 -> 1842851.119 | E25: 1.038383237 | F25: Compliant
B26: =B265 -> Tariff D - Multinet South Gippsland | C26: =C280 -> 71555.71958 | D26: =C281 -> 74307.86682 | E26: 1.038461597 | F26: Compliant
B27: Tariff L - Multinet | C27: =C256 -> 27460.20897 | D27: =C257 -> 27736.31928 | E27: 1.010054924 | F27: Compliant
C28: =SUM(C19:C27) -> 218410325.8 | D28: =SUM(D19:D27) -> 229082221.5 | E28: 1.048861681
B32: =Prop2022DistTar!B6 -> Tariff V - Multinet Residential | C32: 1 | D32: 2 | E32: 3 | F32: 4 | G32: 5 | H32: 6 | I32: 7 | J32: 8 | K32: 9 | L32: 10 | M32: 11 | N32: 12 | O32: 13 | P32: 14 | Q32: 15 | R32: 16 | S32: 17 | T32: 18 | U32: 19 | V32: 20 | W32: 21
C33: 1 | D33: 2 | E33: 3 | F33: 4 | G33: 5 | H33: 6 | I33: 7 | J33: 8 | K33: 9 | L33: 10 | M33: 11 | N33: 12 | O33: 13 | P33: 14 | Q33: 15 | R33: 16 | S33: 17 | T33: 18 | U33: 19 | V33: 20 | W33: 21
B34: Distribution tariff | C34: Fixed | D34: PkBlk1 | E34: PkBlk2 | F34: PkBlk3 | G34: PkBlk4 | H34: PkBlk5 | I34: Shd1Blk1 | J34: Shd1Blk2 | K34: Shd1Blk3 | L34: Shd1Blk4 | M34: Shd1Blk5 | N34: Shd2Blk1 | O34: Shd2Blk2 | P34: Shd2Blk3 | Q34: Shd2Blk4 | R34: Shd2Blk5 | S34: OPkBlk1 | T34: OPkBlk2 | U34: OPkBlk3 | V34: OPkBlk4 | W34: OPkBlk5
B36: ="Existing (1 Jan-31 Dec): "&Prop2022DistTar!C6 -> Existing (1 Jan-31 Dec): Tariff V - Multinet Residential | C36: =INDEX(Prop2022DistTar!$E$8:$E$28,C$33) -> 0.183 | D36: =INDEX(Prop2022DistTar!$E$8:$E$28,D$33) -> 8.8806 | E36: =INDEX(Prop2022DistTar!$E$8:$E$28,E$33) -> 5.8383 | F36: =INDEX(Prop2022DistTar!$E$8:$E$28,F$33) -> 3.0185 | G36: =INDEX(Prop2022DistTar!$E$8:$E$28,G$33) -> 1.5276 | H36: =INDEX(Prop2022DistTar!$E$8:$E$28,H$33) -> 1.1329 | I36: =INDEX(Prop2022DistTar!$E$8:$E$28,I$33) -> 8.476 | J36: =INDEX(Prop2022DistTar!$E$8:$E$28,J$33) -> 5.5464 | K36: =INDEX(Prop2022DistTar!$E$8:$E$28,K$33) -> 2.8686 | L36: =INDEX(Prop2022DistTar!$E$8:$E$28,L$33) -> 1.4513 | M36: =INDEX(Prop2022DistTar!$E$8:$E$28,M$33) -> 1.0913 | N36: =INDEX(Prop2022DistTar!$E$8:$E$28,N$33) -> 8.476 | O36: =INDEX(Prop2022DistTar!$E$8:$E$28,O$33) -> 5.5464 | P36: =INDEX(Prop2022DistTar!$E$8:$E$28,P$33) -> 2.8686 | Q36: =INDEX(Prop2022DistTar!$E$8:$E$28,Q$33) -> 1.4513 | R36: =INDEX(Prop2022DistTar!$E$8:$E$28,R$33) -> 1.0913 | S36: =INDEX(Prop2022DistTar!$E$8:$E$28,S$33) -> 7.5839 | T36: =INDEX(Prop2022DistTar!$E$8:$E$28,T$33) -> 4.9627 | U36: =INDEX(Prop2022DistTar!$E$8:$E$28,U$33) -> 2.5666 | V36: =INDEX(Prop2022DistTar!$E$8:$E$28,V$33) -> 1.2985 | W36: =INDEX(Prop2022DistTar!$E$8:$E$28,W$33) -> 0.9766
B38: ="Proposed (1 Jan-31 Dec): "&B32 -> Proposed (1 Jan-31 Dec): Tariff V - Multinet Residential | C38: =INDEX(Prop2022DistTar!$D$8:$D$28,C$32) -> 0.183 | D38: =INDEX(Prop2022DistTar!$D$8:$D$28,D$32) -> 9.6172 | E38: =INDEX(Prop2022DistTar!$D$8:$D$28,E$32) -> 6.3226 | F38: =INDEX(Prop2022DistTar!$D$8:$D$28,F$32) -> 3.0185 | G38: =INDEX(Prop2022DistTar!$D$8:$D$28,G$32) -> 1.5276 | H38: =INDEX(Prop2022DistTar!$D$8:$D$28,H$32) -> 1.1329 | I38: =INDEX(Prop2022DistTar!$D$8:$D$28,I$32) -> 9.179 | J38: =INDEX(Prop2022DistTar!$D$8:$D$28,J$32) -> 6.0064 | K38: =INDEX(Prop2022DistTar!$D$8:$D$28,K$32) -> 2.8686 | L38: =INDEX(Prop2022DistTar!$D$8:$D$28,L$32) -> 1.4513 | M38: =INDEX(Prop2022DistTar!$D$8:$D$28,M$32) -> 1.0913 | N38: =INDEX(Prop2022DistTar!$D$8:$D$28,N$32) -> 9.179 | O38: =INDEX(Prop2022DistTar!$D$8:$D$28,O$32) -> 6.0064 | P38: =INDEX(Prop2022DistTar!$D$8:$D$28,P$32) -> 2.8686 | Q38: =INDEX(Prop2022DistTar!$D$8:$D$28,Q$32) -> 1.4513 | R38: =INDEX(Prop2022DistTar!$D$8:$D$28,R$32) -> 1.0913 | S38: =INDEX(Prop2022DistTar!$D$8:$D$28,S$32) -> 8.2129 | T38: =INDEX(Prop2022DistTar!$D$8:$D$28,T$32) -> 5.3743 | U38: =INDEX(Prop2022DistTar!$D$8:$D$28,U$32) -> 2.5666 | V38: =INDEX(Prop2022DistTar!$D$8:$D$28,V$32) -> 1.2985 | W38: =INDEX(Prop2022DistTar!$D$8:$D$28,W$32) -> 0.9766
B40: Distribution volumes (actual) | C40: Fixed | D40: PkBlk1 | E40: PkBlk2 | F40: PkBlk3 | G40: PkBlk4 | H40: PkBlk5 | I40: Shd1Blk1 | J40: Shd1Blk2 | K40: Shd1Blk3 | L40: Shd1Blk4 | M40: Shd1Blk5 | N40: Shd2Blk1 | O40: Shd2Blk2 | P40: Shd2Blk3 | Q40: Shd2Blk4 | R40: Shd2Blk5 | S40: OPkBlk1 | T40: OPkBlk2 | U40: OPkBlk3 | V40: OPkBlk4 | W40: OPkBlk5
B42: =B36 -> Existing (1 Jan-31 Dec): Tariff V - Multinet Residential | C42: =INDEX(Prop2022DistTar!$F$8:$F$28,C$32) -> 689383 | D42: =INDEX(Prop2022DistTar!$F$8:$F$28,D$32) -> 3668242.672 | E42: =INDEX(Prop2022DistTar!$F$8:$F$28,E$32) -> 3035296.116 | F42: =INDEX(Prop2022DistTar!$F$8:$F$28,F$32) -> 2622212.374 | G42: =INDEX(Prop2022DistTar!$F$8:$F$28,G$32) -> 4252284.796 | H42: =INDEX(Prop2022DistTar!$F$8:$F$28,H$32) -> 8080820.351 | I42: =INDEX(Prop2022DistTar!$F$8:$F$28,I$32) -> 928731.7101 | J42: =INDEX(Prop2022DistTar!$F$8:$F$28,J$32) -> 758383.4497 | K42: =INDEX(Prop2022DistTar!$F$8:$F$28,K$32) -> 642917.088 | L42: =INDEX(Prop2022DistTar!$F$8:$F$28,L$32) -> 994914.6874 | M42: =INDEX(Prop2022DistTar!$F$8:$F$28,M$32) -> 1589898.009 | N42: =INDEX(Prop2022DistTar!$F$8:$F$28,N$32) -> 892680.2649 | O42: =INDEX(Prop2022DistTar!$F$8:$F$28,O$32) -> 626786.3309 | P42: =INDEX(Prop2022DistTar!$F$8:$F$28,P$32) -> 425681.2449 | Q42: =INDEX(Prop2022DistTar!$F$8:$F$28,Q$32) -> 471225.7807 | R42: =INDEX(Prop2022DistTar!$F$8:$F$28,R$32) -> 471364.974 | S42: =INDEX(Prop2022DistTar!$F$8:$F$28,S$32) -> 4713253.241 | T42: =INDEX(Prop2022DistTar!$F$8:$F$28,T$32) -> 2201464.395 | U42: =INDEX(Prop2022DistTar!$F$8:$F$28,U$32) -> 1113629.263 | V42: =INDEX(Prop2022DistTar!$F$8:$F$28,V$32) -> 1108339.06 | W42: =INDEX(Prop2022DistTar!$F$8:$F$28,W$32) -> 1449295.003
B44: =B38 -> Proposed (1 Jan-31 Dec): Tariff V - Multinet Residential | C44: =INDEX(Prop2022DistTar!$F$8:$F$28,C$32) -> 689383 | D44: =INDEX(Prop2022DistTar!$F$8:$F$28,D$32) -> 3668242.672 | E44: =INDEX(Prop2022DistTar!$F$8:$F$28,E$32) -> 3035296.116 | F44: =INDEX(Prop2022DistTar!$F$8:$F$28,F$32) -> 2622212.374 | G44: =INDEX(Prop2022DistTar!$F$8:$F$28,G$32) -> 4252284.796 | H44: =INDEX(Prop2022DistTar!$F$8:$F$28,H$32) -> 8080820.351 | I44: =INDEX(Prop2022DistTar!$F$8:$F$28,I$32) -> 928731.7101 | J44: =INDEX(Prop2022DistTar!$F$8:$F$28,J$32) -> 758383.4497 | K44: =INDEX(Prop2022DistTar!$F$8:$F$28,K$32) -> 642917.088 | L44: =INDEX(Prop2022DistTar!$F$8:$F$28,L$32) -> 994914.6874 | M44: =INDEX(Prop2022DistTar!$F$8:$F$28,M$32) -> 1589898.009 | N44: =INDEX(Prop2022DistTar!$F$8:$F$28,N$32) -> 892680.2649 | O44: =INDEX(Prop2022DistTar!$F$8:$F$28,O$32) -> 626786.3309 | P44: =INDEX(Prop2022DistTar!$F$8:$F$28,P$32) -> 425681.2449 | Q44: =INDEX(Prop2022DistTar!$F$8:$F$28,Q$32) -> 471225.7807 | R44: =INDEX(Prop2022DistTar!$F$8:$F$28,R$32) -> 471364.974 | S44: =INDEX(Prop2022DistTar!$F$8:$F$28,S$32) -> 4713253.241 | T44: =INDEX(Prop2022DistTar!$F$8:$F$28,T$32) -> 2201464.395 | U44: =INDEX(Prop2022DistTar!$F$8:$F$28,U$32) -> 1113629.263 | V44: =INDEX(Prop2022DistTar!$F$8:$F$28,V$32) -> 1108339.06 | W44: =INDEX(Prop2022DistTar!$F$8:$F$28,W$32) -> 1449295.003
B46: Distribution revenue | C46: Fixed | D46: PkBlk1 | E46: PkBlk2 | F46: PkBlk3 | G46: PkBlk4 | H46: PkBlk5 | I46: Shd1Blk1 | J46: Shd1Blk2 | K46: Shd1Blk3 | L46: Shd1Blk4 | M46: Shd1Blk5 | N46: Shd2Blk1 | O46: Shd2Blk2 | P46: Shd2Blk3 | Q46: Shd2Blk4 | R46: Shd2Blk5 | S46: OPkBlk1 | T46: OPkBlk2 | U46: OPkBlk3 | V46: OPkBlk4 | W46: OPkBlk5
B48: =B42 -> Existing (1 Jan-31 Dec): Tariff V - Multinet Residential | C48: =INDEX(Prop2022DistTar!$H$8:$H$28,C$33) -> 46047337.48 | D48: =INDEX(Prop2022DistTar!$H$8:$H$28,D$33) -> 32576195.87 | E48: =INDEX(Prop2022DistTar!$H$8:$H$28,E$33) -> 17720969.31 | F48: =INDEX(Prop2022DistTar!$H$8:$H$28,F$33) -> 7915148.05 | G48: =INDEX(Prop2022DistTar!$H$8:$H$28,G$33) -> 6495790.254 | H48: =INDEX(Prop2022DistTar!$H$8:$H$28,H$33) -> 9154761.376 | I48: =INDEX(Prop2022DistTar!$H$8:$H$28,I$33) -> 7871929.975 | J48: =INDEX(Prop2022DistTar!$H$8:$H$28,J$33) -> 4206297.965 | K48: =INDEX(Prop2022DistTar!$H$8:$H$28,K$33) -> 1844271.959 | L48: =INDEX(Prop2022DistTar!$H$8:$H$28,L$33) -> 1443919.686 | M48: =INDEX(Prop2022DistTar!$H$8:$H$28,M$33) -> 1735055.697 | N48: =INDEX(Prop2022DistTar!$H$8:$H$28,N$33) -> 7566357.925 | O48: =INDEX(Prop2022DistTar!$H$8:$H$28,O$33) -> 3476407.706 | P48: =INDEX(Prop2022DistTar!$H$8:$H$28,P$33) -> 1221109.219 | Q48: =INDEX(Prop2022DistTar!$H$8:$H$28,Q$33) -> 683889.9755 | R48: =INDEX(Prop2022DistTar!$H$8:$H$28,R$33) -> 514400.5961 | S48: =INDEX(Prop2022DistTar!$H$8:$H$28,S$33) -> 35744841.25 | T48: =INDEX(Prop2022DistTar!$H$8:$H$28,T$33) -> 10925207.35 | U48: =INDEX(Prop2022DistTar!$H$8:$H$28,U$33) -> 2858240.868 | V48: =INDEX(Prop2022DistTar!$H$8:$H$28,V$33) -> 1439178.269 | W48: =INDEX(Prop2022DistTar!$H$8:$H$28,W$33) -> 1415381.5
B50: =B44 -> Proposed (1 Jan-31 Dec): Tariff V - Multinet Residential | C50: =INDEX(Prop2022DistTar!$G$8:$G$28,C$32) -> 46047337.48 | D50: =INDEX(Prop2022DistTar!$G$8:$G$28,D$32) -> 35278223.42 | E50: =INDEX(Prop2022DistTar!$G$8:$G$28,E$32) -> 19190963.22 | F50: =INDEX(Prop2022DistTar!$G$8:$G$28,F$32) -> 7915148.05 | G50: =INDEX(Prop2022DistTar!$G$8:$G$28,G$32) -> 6495790.254 | H50: =INDEX(Prop2022DistTar!$G$8:$G$28,H$32) -> 9154761.376 | I50: =INDEX(Prop2022DistTar!$G$8:$G$28,I$32) -> 8524828.367 | J50: =INDEX(Prop2022DistTar!$G$8:$G$28,J$32) -> 4555154.352 | K50: =INDEX(Prop2022DistTar!$G$8:$G$28,K$32) -> 1844271.959 | L50: =INDEX(Prop2022DistTar!$G$8:$G$28,L$32) -> 1443919.686 | M50: =INDEX(Prop2022DistTar!$G$8:$G$28,M$32) -> 1735055.697 | N50: =INDEX(Prop2022DistTar!$G$8:$G$28,N$32) -> 8193912.152 | O50: =INDEX(Prop2022DistTar!$G$8:$G$28,O$32) -> 3764729.418 | P50: =INDEX(Prop2022DistTar!$G$8:$G$28,P$32) -> 1221109.219 | Q50: =INDEX(Prop2022DistTar!$G$8:$G$28,Q$32) -> 683889.9755 | R50: =INDEX(Prop2022DistTar!$G$8:$G$28,R$32) -> 514400.5961 | S50: =INDEX(Prop2022DistTar!$G$8:$G$28,S$32) -> 38709477.54 | T50: =INDEX(Prop2022DistTar!$G$8:$G$28,T$32) -> 11831330.1 | U50: =INDEX(Prop2022DistTar!$G$8:$G$28,U$32) -> 2858240.868 | V50: =INDEX(Prop2022DistTar!$G$8:$G$28,V$32) -> 1439178.269 | W50: =INDEX(Prop2022DistTar!$G$8:$G$28,W$32) -> 1415381.5
B52: Revenue | C52: Total
B53: =B48 -> Existing (1 Jan-31 Dec): Tariff V - Multinet Residential | C53: =SUM(C48:W48) -> 202856692.3
B54: =B50 -> Proposed (1 Jan-31 Dec): Tariff V - Multinet Residential | C54: =SUM(C50:W50) -> 212817103.5
B56: Average price movement | C56: =IF(C54=0,"",C54/C53) -> 1.049100728
B58: =IF(C56="","",IF(C56<=$C$13,"REBALANCING CONTROL COMPLIANT","REBALANCING CONTROL BREACHED")) -> REBALANCING CONTROL COMPLIANT
B62: =Prop2022DistTar!B52 -> Tariff V - Yarra Valley Residential | C62: 1 | D62: 2 | E62: 3 | F62: 4 | G62: 5 | H62: 6 | I62: 7 | J62: 8 | K62: 9 | L62: 10 | M62: 11 | N62: 12 | O62: 13 | P62: 14 | Q62: 15 | R62: 16 | S62: 17 | T62: 18 | U62: 19 | V62: 20 | W62: 21
C63: 1 | D63: 2 | E63: 3 | F63: 4 | G63: 5 | H63: 6 | I63: 7 | J63: 8 | K63: 9 | L63: 10 | M63: 11 | N63: 12 | O63: 13 | P63: 14 | Q63: 15 | R63: 16 | S63: 17 | T63: 18 | U63: 19 | V63: 20 | W63: 21
B64: Distribution tariff | C64: Fixed | D64: PkBlk1 | E64: PkBlk2 | F64: PkBlk3 | G64: PkBlk4 | H64: PkBlk5 | I64: Shd1Blk1 | J64: Shd1Blk2 | K64: Shd1Blk3 | L64: Shd1Blk4 | M64: Shd1Blk5 | N64: Shd2Blk1 | O64: Shd2Blk2 | P64: Shd2Blk3 | Q64: Shd2Blk4 | R64: Shd2Blk5 | S64: OPkBlk1 | T64: OPkBlk2 | U64: OPkBlk3 | V64: OPkBlk4 | W64: OPkBlk5
B66: ="Existing (1 Jan-31 Dec): "&Prop2022DistTar!C52 -> Existing (1 Jan-31 Dec): Tariff V - Yarra Valley Residential | C66: =INDEX(Prop2022DistTar!$E$54:$E$74,C$33) -> 0.183 | D66: =INDEX(Prop2022DistTar!$E$54:$E$74,D$33) -> 10.5832 | E66: =INDEX(Prop2022DistTar!$E$54:$E$74,E$33) -> 7.8394 | F66: =INDEX(Prop2022DistTar!$E$54:$E$74,F$33) -> 5.6037 | G66: =INDEX(Prop2022DistTar!$E$54:$E$74,G$33) -> 4.4204 | H66: =INDEX(Prop2022DistTar!$E$54:$E$74,H$33) -> 4.1198 | I66: =INDEX(Prop2022DistTar!$E$54:$E$74,I$33) -> 10.2293 | J66: =INDEX(Prop2022DistTar!$E$54:$E$74,J$33) -> 7.6078 | K66: =INDEX(Prop2022DistTar!$E$54:$E$74,K$33) -> 5.4839 | L66: =INDEX(Prop2022DistTar!$E$54:$E$74,L$33) -> 4.3597 | M66: =INDEX(Prop2022DistTar!$E$54:$E$74,M$33) -> 4.0742 | N66: =INDEX(Prop2022DistTar!$E$54:$E$74,N$33) -> 10.2293 | O66: =INDEX(Prop2022DistTar!$E$54:$E$74,O$33) -> 7.6078 | P66: =INDEX(Prop2022DistTar!$E$54:$E$74,P$33) -> 5.4839 | Q66: =INDEX(Prop2022DistTar!$E$54:$E$74,Q$33) -> 4.3597 | R66: =INDEX(Prop2022DistTar!$E$54:$E$74,R$33) -> 4.0742 | S66: =INDEX(Prop2022DistTar!$E$54:$E$74,S$33) -> 9.5216 | T66: =INDEX(Prop2022DistTar!$E$54:$E$74,T$33) -> 7.1447 | U66: =INDEX(Prop2022DistTar!$E$54:$E$74,U$33) -> 5.2443 | V66: =INDEX(Prop2022DistTar!$E$54:$E$74,V$33) -> 4.2385 | W66: =INDEX(Prop2022DistTar!$E$54:$E$74,W$33) -> 4.02
B68: ="Proposed (1 Jan-31 Dec): "&B62 -> Proposed (1 Jan-31 Dec): Tariff V - Yarra Valley Residential | C68: =INDEX(Prop2022DistTar!$D$54:$D$74,C$32) -> 0.183 | D68: =INDEX(Prop2022DistTar!$D$54:$D$74,D$32) -> 11.461 | E68: =INDEX(Prop2022DistTar!$D$54:$D$74,E$32) -> 8.4896 | F68: =INDEX(Prop2022DistTar!$D$54:$D$74,F$32) -> 5.6037 | G68: =INDEX(Prop2022DistTar!$D$54:$D$74,G$32) -> 4.4204 | H68: =INDEX(Prop2022DistTar!$D$54:$D$74,H$32) -> 4.1198 | I68: =INDEX(Prop2022DistTar!$D$54:$D$74,I$32) -> 11.0778 | J68: =INDEX(Prop2022DistTar!$D$54:$D$74,J$32) -> 8.2388 | K68: =INDEX(Prop2022DistTar!$D$54:$D$74,K$32) -> 5.4839 | L68: =INDEX(Prop2022DistTar!$D$54:$D$74,L$32) -> 4.3597 | M68: =INDEX(Prop2022DistTar!$D$54:$D$74,M$32) -> 4.0742 | N68: =INDEX(Prop2022DistTar!$D$54:$D$74,N$32) -> 11.0778 | O68: =INDEX(Prop2022DistTar!$D$54:$D$74,O$32) -> 8.2388 | P68: =INDEX(Prop2022DistTar!$D$54:$D$74,P$32) -> 5.4839 | Q68: =INDEX(Prop2022DistTar!$D$54:$D$74,Q$32) -> 4.3597 | R68: =INDEX(Prop2022DistTar!$D$54:$D$74,R$32) -> 4.0742 | S68: =INDEX(Prop2022DistTar!$D$54:$D$74,S$32) -> 10.3114 | T68: =INDEX(Prop2022DistTar!$D$54:$D$74,T$32) -> 7.7373 | U68: =INDEX(Prop2022DistTar!$D$54:$D$74,U$32) -> 5.2443 | V68: =INDEX(Prop2022DistTar!$D$54:$D$74,V$32) -> 4.2385 | W68: =INDEX(Prop2022DistTar!$D$54:$D$74,W$32) -> 4.02
B70: Distribution volumes (actual) | C70: Fixed | D70: PkBlk1 | E70: PkBlk2 | F70: PkBlk3 | G70: PkBlk4 | H70: PkBlk5 | I70: Shd1Blk1 | J70: Shd1Blk2 | K70: Shd1Blk3 | L70: Shd1Blk4 | M70: Shd1Blk5 | N70: Shd2Blk1 | O70: Shd2Blk2 | P70: Shd2Blk3 | Q70: Shd2Blk4 | R70: Shd2Blk5 | S70: OPkBlk1 | T70: OPkBlk2 | U70: OPkBlk3 | V70: OPkBlk4 | W70: OPkBlk5
B72: =B66 -> Existing (1 Jan-31 Dec): Tariff V - Yarra Valley Residential | C72: =INDEX(Prop2022DistTar!$F$54:$F$74,C$32) -> 5638 | D72: =INDEX(Prop2022DistTar!$F$54:$F$74,D$32) -> 30033.3359 | E72: =INDEX(Prop2022DistTar!$F$54:$F$74,E$32) -> 25004.321 | F72: =INDEX(Prop2022DistTar!$F$54:$F$74,F$32) -> 21739.4231 | G72: =INDEX(Prop2022DistTar!$F$54:$F$74,G$32) -> 34627.1502 | H72: =INDEX(Prop2022DistTar!$F$54:$F$74,H$32) -> 55331.1882 | I72: =INDEX(Prop2022DistTar!$F$54:$F$74,I$32) -> 7551.619 | J72: =INDEX(Prop2022DistTar!$F$54:$F$74,J$32) -> 6169.088 | K72: =INDEX(Prop2022DistTar!$F$54:$F$74,K$32) -> 5246.021 | L72: =INDEX(Prop2022DistTar!$F$54:$F$74,L$32) -> 8121.991 | M72: =INDEX(Prop2022DistTar!$F$54:$F$74,M$32) -> 12074.0659 | N72: =INDEX(Prop2022DistTar!$F$54:$F$74,N$32) -> 7363.714 | O72: =INDEX(Prop2022DistTar!$F$54:$F$74,O$32) -> 5322.821 | P72: =INDEX(Prop2022DistTar!$F$54:$F$74,P$32) -> 3620.2161 | Q72: =INDEX(Prop2022DistTar!$F$54:$F$74,Q$32) -> 3501.4 | R72: =INDEX(Prop2022DistTar!$F$54:$F$74,R$32) -> 2828.465 | S72: =INDEX(Prop2022DistTar!$F$54:$F$74,S$32) -> 34344.24 | T72: =INDEX(Prop2022DistTar!$F$54:$F$74,T$32) -> 15187.3799 | U72: =INDEX(Prop2022DistTar!$F$54:$F$74,U$32) -> 7932.643 | V72: =INDEX(Prop2022DistTar!$F$54:$F$74,V$32) -> 7063.3771 | W72: =INDEX(Prop2022DistTar!$F$54:$F$74,W$32) -> 8312.806
B74: =B68 -> Proposed (1 Jan-31 Dec): Tariff V - Yarra Valley Residential | C74: =INDEX(Prop2022DistTar!$F$54:$F$74,C$32) -> 5638 | D74: =INDEX(Prop2022DistTar!$F$54:$F$74,D$32) -> 30033.3359 | E74: =INDEX(Prop2022DistTar!$F$54:$F$74,E$32) -> 25004.321 | F74: =INDEX(Prop2022DistTar!$F$54:$F$74,F$32) -> 21739.4231 | G74: =INDEX(Prop2022DistTar!$F$54:$F$74,G$32) -> 34627.1502 | H74: =INDEX(Prop2022DistTar!$F$54:$F$74,H$32) -> 55331.1882 | I74: =INDEX(Prop2022DistTar!$F$54:$F$74,I$32) -> 7551.619 | J74: =INDEX(Prop2022DistTar!$F$54:$F$74,J$32) -> 6169.088 | K74: =INDEX(Prop2022DistTar!$F$54:$F$74,K$32) -> 5246.021 | L74: =INDEX(Prop2022DistTar!$F$54:$F$74,L$32) -> 8121.991 | M74: =INDEX(Prop2022DistTar!$F$54:$F$74,M$32) -> 12074.0659 | N74: =INDEX(Prop2022DistTar!$F$54:$F$74,N$32) -> 7363.714 | O74: =INDEX(Prop2022DistTar!$F$54:$F$74,O$32) -> 5322.821 | P74: =INDEX(Prop2022DistTar!$F$54:$F$74,P$32) -> 3620.2161 | Q74: =INDEX(Prop2022DistTar!$F$54:$F$74,Q$32) -> 3501.4 | R74: =INDEX(Prop2022DistTar!$F$54:$F$74,R$32) -> 2828.465 | S74: =INDEX(Prop2022DistTar!$F$54:$F$74,S$32) -> 34344.24 | T74: =INDEX(Prop2022DistTar!$F$54:$F$74,T$32) -> 15187.3799 | U74: =INDEX(Prop2022DistTar!$F$54:$F$74,U$32) -> 7932.643 | V74: =INDEX(Prop2022DistTar!$F$54:$F$74,V$32) -> 7063.3771 | W74: =INDEX(Prop2022DistTar!$F$54:$F$74,W$32) -> 8312.806
B76: Distribution revenue | C76: Fixed | D76: PkBlk1 | E76: PkBlk2 | F76: PkBlk3 | G76: PkBlk4 | H76: PkBlk5 | I76: Shd1Blk1 | J76: Shd1Blk2 | K76: Shd1Blk3 | L76: Shd1Blk4 | M76: Shd1Blk5 | N76: Shd2Blk1 | O76: Shd2Blk2 | P76: Shd2Blk3 | Q76: Shd2Blk4 | R76: Shd2Blk5 | S76: OPkBlk1 | T76: OPkBlk2 | U76: OPkBlk3 | V76: OPkBlk4 | W76: OPkBlk5
B78: =B72 -> Existing (1 Jan-31 Dec): Tariff V - Yarra Valley Residential | C78: =INDEX(Prop2022DistTar!$H$54:$H$74,C$33) -> 376590.21 | D78: =INDEX(Prop2022DistTar!$H$54:$H$74,D$33) -> 317848.8005 | E78: =INDEX(Prop2022DistTar!$H$54:$H$74,E$33) -> 196018.874 | F78: =INDEX(Prop2022DistTar!$H$54:$H$74,F$33) -> 121821.2052 | G78: =INDEX(Prop2022DistTar!$H$54:$H$74,G$33) -> 153065.8547 | H78: =INDEX(Prop2022DistTar!$H$54:$H$74,H$33) -> 227953.4291 | I78: =INDEX(Prop2022DistTar!$H$54:$H$74,I$33) -> 77247.77624 | J78: =INDEX(Prop2022DistTar!$H$54:$H$74,J$33) -> 46933.18769 | K78: =INDEX(Prop2022DistTar!$H$54:$H$74,K$33) -> 28768.65456 | L78: =INDEX(Prop2022DistTar!$H$54:$H$74,L$33) -> 35409.44416 | M78: =INDEX(Prop2022DistTar!$H$54:$H$74,M$33) -> 49192.15929 | N78: =INDEX(Prop2022DistTar!$H$54:$H$74,N$33) -> 75325.63962 | O78: =INDEX(Prop2022DistTar!$H$54:$H$74,O$33) -> 40494.9576 | P78: =INDEX(Prop2022DistTar!$H$54:$H$74,P$33) -> 19852.90307 | Q78: =INDEX(Prop2022DistTar!$H$54:$H$74,Q$33) -> 15265.05358 | R78: =INDEX(Prop2022DistTar!$H$54:$H$74,R$33) -> 11523.7321 | S78: =INDEX(Prop2022DistTar!$H$54:$H$74,S$33) -> 327012.1156 | T78: =INDEX(Prop2022DistTar!$H$54:$H$74,T$33) -> 108509.2732 | U78: =INDEX(Prop2022DistTar!$H$54:$H$74,U$33) -> 41601.15968 | V78: =INDEX(Prop2022DistTar!$H$54:$H$74,V$33) -> 29938.12384 | W78: =INDEX(Prop2022DistTar!$H$54:$H$74,W$33) -> 33417.48012
B80: =B74 -> Proposed (1 Jan-31 Dec): Tariff V - Yarra Valley Residential | C80: =INDEX(Prop2022DistTar!$G$54:$G$74,C$32) -> 376590.21 | D80: =INDEX(Prop2022DistTar!$G$54:$G$74,D$32) -> 344212.0627 | E80: =INDEX(Prop2022DistTar!$G$54:$G$74,E$32) -> 212276.6836 | F80: =INDEX(Prop2022DistTar!$G$54:$G$74,F$32) -> 121821.2052 | G80: =INDEX(Prop2022DistTar!$G$54:$G$74,G$32) -> 153065.8547 | H80: =INDEX(Prop2022DistTar!$G$54:$G$74,H$32) -> 227953.4291 | I80: =INDEX(Prop2022DistTar!$G$54:$G$74,I$32) -> 83655.32496 | J80: =INDEX(Prop2022DistTar!$G$54:$G$74,J$32) -> 50825.88221 | K80: =INDEX(Prop2022DistTar!$G$54:$G$74,K$32) -> 28768.65456 | L80: =INDEX(Prop2022DistTar!$G$54:$G$74,L$32) -> 35409.44416 | M80: =INDEX(Prop2022DistTar!$G$54:$G$74,M$32) -> 49192.15929 | N80: =INDEX(Prop2022DistTar!$G$54:$G$74,N$32) -> 81573.75095 | O80: =INDEX(Prop2022DistTar!$G$54:$G$74,O$32) -> 43853.65765 | P80: =INDEX(Prop2022DistTar!$G$54:$G$74,P$32) -> 19852.90307 | Q80: =INDEX(Prop2022DistTar!$G$54:$G$74,Q$32) -> 15265.05358 | R80: =INDEX(Prop2022DistTar!$G$54:$G$74,R$32) -> 11523.7321 | S80: =INDEX(Prop2022DistTar!$G$54:$G$74,S$32) -> 354137.1963 | T80: =INDEX(Prop2022DistTar!$G$54:$G$74,T$32) -> 117509.3145 | U80: =INDEX(Prop2022DistTar!$G$54:$G$74,U$32) -> 41601.15968 | V80: =INDEX(Prop2022DistTar!$G$54:$G$74,V$32) -> 29938.12384 | W80: =INDEX(Prop2022DistTar!$G$54:$G$74,W$32) -> 33417.48012
B82: Revenue | C82: Total
B83: =B78 -> Existing (1 Jan-31 Dec): Tariff V - Yarra Valley Residential | C83: =SUM(C78:W78) -> 2333790.034
B84: =B80 -> Proposed (1 Jan-31 Dec): Tariff V - Yarra Valley Residential | C84: =SUM(C80:W80) -> 2432443.282
B86: Average price movement | C86: =IF(C84=0,"",C84/C83) -> 1.04227169
B88: =IF(C86="","",IF(C86<=$C$13,"REBALANCING CONTROL COMPLIANT","REBALANCING CONTROL BREACHED")) -> REBALANCING CONTROL COMPLIANT
B92: =Prop2022DistTar!B98 -> Tariff V - South Gippsland Residential | C92: 1 | D92: 2 | E92: 3 | F92: 4 | G92: 5 | H92: 6 | I92: 7 | J92: 8 | K92: 9 | L92: 10 | M92: 11 | N92: 12 | O92: 13 | P92: 14 | Q92: 15 | R92: 16 | S92: 17 | T92: 18 | U92: 19 | V92: 20 | W92: 21
C93: 1 | D93: 2 | E93: 3 | F93: 4 | G93: 5 | H93: 6 | I93: 7 | J93: 8 | K93: 9 | L93: 10 | M93: 11 | N93: 12 | O93: 13 | P93: 14 | Q93: 15 | R93: 16 | S93: 17 | T93: 18 | U93: 19 | V93: 20 | W93: 21
B94: Distribution tariff | C94: Fixed | D94: PkBlk1 | E94: PkBlk2 | F94: PkBlk3 | G94: PkBlk4 | H94: PkBlk5 | I94: Shd1Blk1 | J94: Shd1Blk2 | K94: Shd1Blk3 | L94: Shd1Blk4 | M94: Shd1Blk5 | N94: Shd2Blk1 | O94: Shd2Blk2 | P94: Shd2Blk3 | Q94: Shd2Blk4 | R94: Shd2Blk5 | S94: OPkBlk1 | T94: OPkBlk2 | U94: OPkBlk3 | V94: OPkBlk4 | W94: OPkBlk5
B96: ="Existing (1 Jan-31 Dec): "&Prop2022DistTar!C98 -> Existing (1 Jan-31 Dec): Tariff V - South Gippsland Residential | C96: =INDEX(Prop2022DistTar!$E$100:$E$120,C$33) -> 0.183 | D96: =INDEX(Prop2022DistTar!$E$100:$E$120,D$33) -> 11.5179 | E96: =INDEX(Prop2022DistTar!$E$100:$E$120,E$33) -> 8.5804 | F96: =INDEX(Prop2022DistTar!$E$100:$E$120,F$33) -> 6.2062 | G96: =INDEX(Prop2022DistTar!$E$100:$E$120,G$33) -> 4.9497 | H96: =INDEX(Prop2022DistTar!$E$100:$E$120,H$33) -> 4.6306 | I96: =INDEX(Prop2022DistTar!$E$100:$E$120,I$33) -> 11.1419 | J96: =INDEX(Prop2022DistTar!$E$100:$E$120,J$33) -> 8.3346 | K96: =INDEX(Prop2022DistTar!$E$100:$E$120,K$33) -> 6.079 | L96: =INDEX(Prop2022DistTar!$E$100:$E$120,L$33) -> 4.8853 | M96: =INDEX(Prop2022DistTar!$E$100:$E$120,M$33) -> 4.582 | N96: =INDEX(Prop2022DistTar!$E$100:$E$120,N$33) -> 11.1419 | O96: =INDEX(Prop2022DistTar!$E$100:$E$120,O$33) -> 8.3346 | P96: =INDEX(Prop2022DistTar!$E$100:$E$120,P$33) -> 6.079 | Q96: =INDEX(Prop2022DistTar!$E$100:$E$120,Q$33) -> 4.8853 | R96: =INDEX(Prop2022DistTar!$E$100:$E$120,R$33) -> 4.582 | S96: =INDEX(Prop2022DistTar!$E$100:$E$120,S$33) -> 10.3907 | T96: =INDEX(Prop2022DistTar!$E$100:$E$120,T$33) -> 7.8428 | U96: =INDEX(Prop2022DistTar!$E$100:$E$120,U$33) -> 5.8247 | V96: =INDEX(Prop2022DistTar!$E$100:$E$120,V$33) -> 4.7565 | W96: =INDEX(Prop2022DistTar!$E$100:$E$120,W$33) -> 4.4852
B98: ="Proposed (1 Jan-31 Dec): "&B92 -> Proposed (1 Jan-31 Dec): Tariff V - South Gippsland Residential | C98: =INDEX(Prop2022DistTar!$D$100:$D$120,C$32) -> 0.183 | D98: =INDEX(Prop2022DistTar!$D$100:$D$120,D$32) -> 12.4732 | E98: =INDEX(Prop2022DistTar!$D$100:$D$120,E$32) -> 9.2921 | F98: =INDEX(Prop2022DistTar!$D$100:$D$120,F$32) -> 6.2062 | G98: =INDEX(Prop2022DistTar!$D$100:$D$120,G$32) -> 4.9497 | H98: =INDEX(Prop2022DistTar!$D$100:$D$120,H$32) -> 4.6306 | I98: =INDEX(Prop2022DistTar!$D$100:$D$120,I$32) -> 12.0661 | J98: =INDEX(Prop2022DistTar!$D$100:$D$120,J$32) -> 9.0259 | K98: =INDEX(Prop2022DistTar!$D$100:$D$120,K$32) -> 6.079 | L98: =INDEX(Prop2022DistTar!$D$100:$D$120,L$32) -> 4.8853 | M98: =INDEX(Prop2022DistTar!$D$100:$D$120,M$32) -> 4.582 | N98: =INDEX(Prop2022DistTar!$D$100:$D$120,N$32) -> 12.0661 | O98: =INDEX(Prop2022DistTar!$D$100:$D$120,O$32) -> 9.0259 | P98: =INDEX(Prop2022DistTar!$D$100:$D$120,P$32) -> 6.079 | Q98: =INDEX(Prop2022DistTar!$D$100:$D$120,Q$32) -> 4.8853 | R98: =INDEX(Prop2022DistTar!$D$100:$D$120,R$32) -> 4.582 | S98: =INDEX(Prop2022DistTar!$D$100:$D$120,S$32) -> 11.2525 | T98: =INDEX(Prop2022DistTar!$D$100:$D$120,T$32) -> 8.4933 | U98: =INDEX(Prop2022DistTar!$D$100:$D$120,U$32) -> 5.8247 | V98: =INDEX(Prop2022DistTar!$D$100:$D$120,V$32) -> 4.7565 | W98: =INDEX(Prop2022DistTar!$D$100:$D$120,W$32) -> 4.4852
B100: Distribution volumes (actual) | C100: Fixed | D100: PkBlk1 | E100: PkBlk2 | F100: PkBlk3 | G100: PkBlk4 | H100: PkBlk5 | I100: Shd1Blk1 | J100: Shd1Blk2 | K100: Shd1Blk3 | L100: Shd1Blk4 | M100: Shd1Blk5 | N100: Shd2Blk1 | O100: Shd2Blk2 | P100: Shd2Blk3 | Q100: Shd2Blk4 | R100: Shd2Blk5 | S100: OPkBlk1 | T100: OPkBlk2 | U100: OPkBlk3 | V100: OPkBlk4 | W100: OPkBlk5
B102: =B96 -> Existing (1 Jan-31 Dec): Tariff V - South Gippsland Residential | C102: =INDEX(Prop2022DistTar!$F$100:$F$120,C$32) -> 6089 | D102: =INDEX(Prop2022DistTar!$F$100:$F$120,D$32) -> 28150.191 | E102: =INDEX(Prop2022DistTar!$F$100:$F$120,E$32) -> 21031.599 | F102: =INDEX(Prop2022DistTar!$F$100:$F$120,F$32) -> 16634.9011 | G102: =INDEX(Prop2022DistTar!$F$100:$F$120,G$32) -> 22433.632 | H102: =INDEX(Prop2022DistTar!$F$100:$F$120,H$32) -> 20193.1209 | I102: =INDEX(Prop2022DistTar!$F$100:$F$120,I$32) -> 7110.4911 | J102: =INDEX(Prop2022DistTar!$F$100:$F$120,J$32) -> 5082.948 | K102: =INDEX(Prop2022DistTar!$F$100:$F$120,K$32) -> 3711.84 | L102: =INDEX(Prop2022DistTar!$F$100:$F$120,L$32) -> 4109.521 | M102: =INDEX(Prop2022DistTar!$F$100:$F$120,M$32) -> 2632.139 | N102: =INDEX(Prop2022DistTar!$F$100:$F$120,N$32) -> 6328.292 | O102: =INDEX(Prop2022DistTar!$F$100:$F$120,O$32) -> 3278.887 | P102: =INDEX(Prop2022DistTar!$F$100:$F$120,P$32) -> 1675.311 | Q102: =INDEX(Prop2022DistTar!$F$100:$F$120,Q$32) -> 1322.083 | R102: =INDEX(Prop2022DistTar!$F$100:$F$120,R$32) -> 1043.606 | S102: =INDEX(Prop2022DistTar!$F$100:$F$120,S$32) -> 29133.198 | T102: =INDEX(Prop2022DistTar!$F$100:$F$120,T$32) -> 9497.6002 | U102: =INDEX(Prop2022DistTar!$F$100:$F$120,U$32) -> 4404.836 | V102: =INDEX(Prop2022DistTar!$F$100:$F$120,V$32) -> 3785.987 | W102: =INDEX(Prop2022DistTar!$F$100:$F$120,W$32) -> 3777.24
B104: =B98 -> Proposed (1 Jan-31 Dec): Tariff V - South Gippsland Residential | C104: =INDEX(Prop2022DistTar!$F$100:$F$120,C$32) -> 6089 | D104: =INDEX(Prop2022DistTar!$F$100:$F$120,D$32) -> 28150.191 | E104: =INDEX(Prop2022DistTar!$F$100:$F$120,E$32) -> 21031.599 | F104: =INDEX(Prop2022DistTar!$F$100:$F$120,F$32) -> 16634.9011 | G104: =INDEX(Prop2022DistTar!$F$100:$F$120,G$32) -> 22433.632 | H104: =INDEX(Prop2022DistTar!$F$100:$F$120,H$32) -> 20193.1209 | I104: =INDEX(Prop2022DistTar!$F$100:$F$120,I$32) -> 7110.4911 | J104: =INDEX(Prop2022DistTar!$F$100:$F$120,J$32) -> 5082.948 | K104: =INDEX(Prop2022DistTar!$F$100:$F$120,K$32) -> 3711.84 | L104: =INDEX(Prop2022DistTar!$F$100:$F$120,L$32) -> 4109.521 | M104: =INDEX(Prop2022DistTar!$F$100:$F$120,M$32) -> 2632.139 | N104: =INDEX(Prop2022DistTar!$F$100:$F$120,N$32) -> 6328.292 | O104: =INDEX(Prop2022DistTar!$F$100:$F$120,O$32) -> 3278.887 | P104: =INDEX(Prop2022DistTar!$F$100:$F$120,P$32) -> 1675.311 | Q104: =INDEX(Prop2022DistTar!$F$100:$F$120,Q$32) -> 1322.083 | R104: =INDEX(Prop2022DistTar!$F$100:$F$120,R$32) -> 1043.606 | S104: =INDEX(Prop2022DistTar!$F$100:$F$120,S$32) -> 29133.198 | T104: =INDEX(Prop2022DistTar!$F$100:$F$120,T$32) -> 9497.6002 | U104: =INDEX(Prop2022DistTar!$F$100:$F$120,U$32) -> 4404.836 | V104: =INDEX(Prop2022DistTar!$F$100:$F$120,V$32) -> 3785.987 | W104: =INDEX(Prop2022DistTar!$F$100:$F$120,W$32) -> 3777.24
B106: Distribution revenue | C106: Fixed | D106: PkBlk1 | E106: PkBlk2 | F106: PkBlk3 | G106: PkBlk4 | H106: PkBlk5 | I106: Shd1Blk1 | J106: Shd1Blk2 | K106: Shd1Blk3 | L106: Shd1Blk4 | M106: Shd1Blk5 | N106: Shd2Blk1 | O106: Shd2Blk2 | P106: Shd2Blk3 | Q106: Shd2Blk4 | R106: Shd2Blk5 | S106: OPkBlk1 | T106: OPkBlk2 | U106: OPkBlk3 | V106: OPkBlk4 | W106: OPkBlk5
B108: =B102 -> Existing (1 Jan-31 Dec): Tariff V - South Gippsland Residential | C108: =INDEX(Prop2022DistTar!$H$100:$H$120,C$33) -> 406714.755 | D108: =INDEX(Prop2022DistTar!$H$100:$H$120,D$33) -> 324231.0849 | E108: =INDEX(Prop2022DistTar!$H$100:$H$120,E$33) -> 180459.5321 | F108: =INDEX(Prop2022DistTar!$H$100:$H$120,F$33) -> 103239.5232 | G108: =INDEX(Prop2022DistTar!$H$100:$H$120,G$33) -> 111039.7483 | H108: =INDEX(Prop2022DistTar!$H$100:$H$120,H$33) -> 93506.26564 | I108: =INDEX(Prop2022DistTar!$H$100:$H$120,I$33) -> 79224.38079 | J108: =INDEX(Prop2022DistTar!$H$100:$H$120,J$33) -> 42364.3384 | K108: =INDEX(Prop2022DistTar!$H$100:$H$120,K$33) -> 22564.27536 | L108: =INDEX(Prop2022DistTar!$H$100:$H$120,L$33) -> 20076.24294 | M108: =INDEX(Prop2022DistTar!$H$100:$H$120,M$33) -> 12060.4609 | N108: =INDEX(Prop2022DistTar!$H$100:$H$120,N$33) -> 70509.19663 | O108: =INDEX(Prop2022DistTar!$H$100:$H$120,O$33) -> 27328.21159 | P108: =INDEX(Prop2022DistTar!$H$100:$H$120,P$33) -> 10184.21557 | Q108: =INDEX(Prop2022DistTar!$H$100:$H$120,Q$33) -> 6458.77208 | R108: =INDEX(Prop2022DistTar!$H$100:$H$120,R$33) -> 4781.802692 | S108: =INDEX(Prop2022DistTar!$H$100:$H$120,S$33) -> 302714.3205 | T108: =INDEX(Prop2022DistTar!$H$100:$H$120,T$33) -> 74487.77885 | U108: =INDEX(Prop2022DistTar!$H$100:$H$120,U$33) -> 25656.84825 | V108: =INDEX(Prop2022DistTar!$H$100:$H$120,V$33) -> 18008.04717 | W108: =INDEX(Prop2022DistTar!$H$100:$H$120,W$33) -> 16941.67685
B110: =B104 -> Proposed (1 Jan-31 Dec): Tariff V - South Gippsland Residential | C110: =INDEX(Prop2022DistTar!$G$100:$G$120,C$32) -> 406714.755 | D110: =INDEX(Prop2022DistTar!$G$100:$G$120,D$32) -> 351122.9624 | E110: =INDEX(Prop2022DistTar!$G$100:$G$120,E$32) -> 195427.7211 | F110: =INDEX(Prop2022DistTar!$G$100:$G$120,F$32) -> 103239.5232 | G110: =INDEX(Prop2022DistTar!$G$100:$G$120,G$32) -> 111039.7483 | H110: =INDEX(Prop2022DistTar!$G$100:$G$120,H$32) -> 93506.26564 | I110: =INDEX(Prop2022DistTar!$G$100:$G$120,I$32) -> 85795.89666 | J110: =INDEX(Prop2022DistTar!$G$100:$G$120,J$32) -> 45878.18035 | K110: =INDEX(Prop2022DistTar!$G$100:$G$120,K$32) -> 22564.27536 | L110: =INDEX(Prop2022DistTar!$G$100:$G$120,L$32) -> 20076.24294 | M110: =INDEX(Prop2022DistTar!$G$100:$G$120,M$32) -> 12060.4609 | N110: =INDEX(Prop2022DistTar!$G$100:$G$120,N$32) -> 76357.8041 | O110: =INDEX(Prop2022DistTar!$G$100:$G$120,O$32) -> 29594.90617 | P110: =INDEX(Prop2022DistTar!$G$100:$G$120,P$32) -> 10184.21557 | Q110: =INDEX(Prop2022DistTar!$G$100:$G$120,Q$32) -> 6458.77208 | R110: =INDEX(Prop2022DistTar!$G$100:$G$120,R$32) -> 4781.802692 | S110: =INDEX(Prop2022DistTar!$G$100:$G$120,S$32) -> 327821.3105 | T110: =INDEX(Prop2022DistTar!$G$100:$G$120,T$32) -> 80665.96778 | U110: =INDEX(Prop2022DistTar!$G$100:$G$120,U$32) -> 25656.84825 | V110: =INDEX(Prop2022DistTar!$G$100:$G$120,V$32) -> 18008.04717 | W110: =INDEX(Prop2022DistTar!$G$100:$G$120,W$32) -> 16941.67685
B112: Revenue | C112: Total
B113: =B108 -> Existing (1 Jan-31 Dec): Tariff V - South Gippsland Residential | C113: =SUM(C108:W108) -> 1952551.478
B114: =B110 -> Proposed (1 Jan-31 Dec): Tariff V - South Gippsland Residential | C114: =SUM(C110:W110) -> 2043897.383
B116: Average price movement | C116: =IF(C114=0,"",C114/C113) -> 1.046782841
B118: =IF(C116="","",IF(C116<=$C$13,"REBALANCING CONTROL COMPLIANT","REBALANCING CONTROL BREACHED")) -> REBALANCING CONTROL COMPLIANT
B122: =Prop2022DistTar!B29 -> Tariff V - Multinet Non-Residential | C122: 1 | D122: 2 | E122: 3 | F122: 4 | G122: 5 | S122: 6 | T122: 7 | U122: 8 | V122: 9
C123: 1 | D123: 2 | E123: 3 | F123: 4 | G123: 5 | H123: 6 | I123: 7 | J123: 8 | K123: 9 | L123: 10 | M123: 11 | S123: 12 | T123: 13 | U123: 14 | V123: 15 | W123: 16
B124: Distribution tariff | C124: Fixed | D124: PkBlk1 | E124: PkBlk2 | F124: PkBlk3 | G124: PkBlk4 | H124: PkBlk5 | I124: Shd1Blk1 | J124: Shd1Blk2 | K124: Shd1Blk3 | L124: Shd1Blk4 | M124: Shd1Blk5 | N124: Shd2Blk1 | O124: Shd2Blk2 | P124: Shd2Blk3 | Q124: Shd2Blk4 | R124: Shd2Blk5 | S124: OPkBlk1 | T124: OPkBlk2 | U124: OPkBlk3 | V124: OPkBlk4 | W124: OPkBlk5
B126: ="Existing (1 Jan - 31 Dec): "&Prop2022DistTar!C29 -> Existing (1 Jan - 31 Dec): Tariff V - Multinet Non-Residential | C126: =INDEX(Prop2022DistTar!$E$31:$E$51,C$33) -> 0.3018 | D126: =INDEX(Prop2022DistTar!$E$31:$E$51,D$33) -> 4.0556 | E126: =INDEX(Prop2022DistTar!$E$31:$E$51,E$33) -> 2.3486 | F126: =INDEX(Prop2022DistTar!$E$31:$E$51,F$33) -> 1.4092 | G126: =INDEX(Prop2022DistTar!$E$31:$E$51,G$33) -> 0.7842 | H126: =INDEX(Prop2022DistTar!$E$31:$E$51,H$33) -> 0.2617 | I126: =INDEX(Prop2022DistTar!$E$31:$E$51,I$33) -> 3.722 | J126: =INDEX(Prop2022DistTar!$E$31:$E$51,J$33) -> 2.1139 | K126: =INDEX(Prop2022DistTar!$E$31:$E$51,K$33) -> 1.3387 | L126: =INDEX(Prop2022DistTar!$E$31:$E$51,L$33) -> 0.7641 | M126: =INDEX(Prop2022DistTar!$E$31:$E$51,M$33) -> 0.2353 | N126: =INDEX(Prop2022DistTar!$E$31:$E$51,N$33) -> 3.722 | O126: =INDEX(Prop2022DistTar!$E$31:$E$51,O$33) -> 2.1139 | P126: =INDEX(Prop2022DistTar!$E$31:$E$51,P$33) -> 1.3387 | Q126: =INDEX(Prop2022DistTar!$E$31:$E$51,Q$33) -> 0.7641 | R126: =INDEX(Prop2022DistTar!$E$31:$E$51,R$33) -> 0.2353 | S126: =INDEX(Prop2022DistTar!$E$31:$E$51,S$33) -> 3.3756 | T126: =INDEX(Prop2022DistTar!$E$31:$E$51,T$33) -> 2.0411 | U126: =INDEX(Prop2022DistTar!$E$31:$E$51,U$33) -> 1.2218 | V126: =INDEX(Prop2022DistTar!$E$31:$E$51,V$33) -> 0.7404 | W126: =INDEX(Prop2022DistTar!$E$31:$E$51,W$33) -> 0.2091
B128: ="Proposed (1 Jan-31 Dec): "&B122 -> Proposed (1 Jan-31 Dec): Tariff V - Multinet Non-Residential | C128: =INDEX(Prop2022DistTar!$D$31:$D$51,C$32) -> 0.3018 | D128: =INDEX(Prop2022DistTar!$D$31:$D$51,D$32) -> 4.392 | E128: =INDEX(Prop2022DistTar!$D$31:$D$51,E$32) -> 2.5434 | F128: =INDEX(Prop2022DistTar!$D$31:$D$51,F$32) -> 1.4092 | G128: =INDEX(Prop2022DistTar!$D$31:$D$51,G$32) -> 0.7842 | H128: =INDEX(Prop2022DistTar!$D$31:$D$51,H$32) -> 0.2617 | I128: =INDEX(Prop2022DistTar!$D$31:$D$51,I$32) -> 4.0307 | J128: =INDEX(Prop2022DistTar!$D$31:$D$51,J$32) -> 2.2892 | K128: =INDEX(Prop2022DistTar!$D$31:$D$51,K$32) -> 1.3387 | L128: =INDEX(Prop2022DistTar!$D$31:$D$51,L$32) -> 0.7641 | M128: =INDEX(Prop2022DistTar!$D$31:$D$51,M$32) -> 0.2353 | N128: =INDEX(Prop2022DistTar!$D$31:$D$51,N$32) -> 4.0307 | O128: =INDEX(Prop2022DistTar!$D$31:$D$51,O$32) -> 2.2892 | P128: =INDEX(Prop2022DistTar!$D$31:$D$51,P$32) -> 1.3387 | Q128: =INDEX(Prop2022DistTar!$D$31:$D$51,Q$32) -> 0.7641 | R128: =INDEX(Prop2022DistTar!$D$31:$D$51,R$32) -> 0.2353 | S128: =INDEX(Prop2022DistTar!$D$31:$D$51,S$32) -> 3.6556 | T128: =INDEX(Prop2022DistTar!$D$31:$D$51,T$32) -> 2.2104 | U128: =INDEX(Prop2022DistTar!$D$31:$D$51,U$32) -> 1.2218 | V128: =INDEX(Prop2022DistTar!$D$31:$D$51,V$32) -> 0.7404 | W128: =INDEX(Prop2022DistTar!$D$31:$D$51,W$32) -> 0.2091
B130: Distribution volumes (actual) | C130: Fixed | D130: PkBlk1 | E130: PkBlk2 | F130: PkBlk3 | G130: PkBlk4 | H130: PkBlk5 | I130: Shd1Blk1 | J130: Shd1Blk2 | K130: Shd1Blk3 | L130: Shd1Blk4 | M130: Shd1Blk5 | N130: Shd2Blk1 | O130: Shd2Blk2 | P130: Shd2Blk3 | Q130: Shd2Blk4 | R130: Shd2Blk5 | S130: OPkBlk1 | T130: OPkBlk2 | U130: OPkBlk3 | V130: OPkBlk4 | W130: OPkBlk5
B132: =B126 -> Existing (1 Jan - 31 Dec): Tariff V - Multinet Non-Residential | C132: =INDEX(Prop2022DistTar!$F$31:$F$51,C$32) -> 16019 | D132: =INDEX(Prop2022DistTar!$F$31:$F$51,D$32) -> 278106.3585 | E132: =INDEX(Prop2022DistTar!$F$31:$F$51,E$32) -> 422636.4949 | F132: =INDEX(Prop2022DistTar!$F$31:$F$51,F$32) -> 157292.19 | G132: =INDEX(Prop2022DistTar!$F$31:$F$51,G$32) -> 540414.172 | H132: =INDEX(Prop2022DistTar!$F$31:$F$51,H$32) -> 684466.8979 | I132: =INDEX(Prop2022DistTar!$F$31:$F$51,I$32) -> 70320.3961 | J132: =INDEX(Prop2022DistTar!$F$31:$F$51,J$32) -> 104300.1929 | K132: =INDEX(Prop2022DistTar!$F$31:$F$51,K$32) -> 38641.799 | L132: =INDEX(Prop2022DistTar!$F$31:$F$51,L$32) -> 131161.901 | M132: =INDEX(Prop2022DistTar!$F$31:$F$51,M$32) -> 153575.196 | N132: =INDEX(Prop2022DistTar!$F$31:$F$51,N$32) -> 63361.862 | O132: =INDEX(Prop2022DistTar!$F$31:$F$51,O$32) -> 90194.642 | P132: =INDEX(Prop2022DistTar!$F$31:$F$51,P$32) -> 32912.192 | Q132: =INDEX(Prop2022DistTar!$F$31:$F$51,Q$32) -> 105941.144 | R132: =INDEX(Prop2022DistTar!$F$31:$F$51,R$32) -> 103108.61 | S132: =INDEX(Prop2022DistTar!$F$31:$F$51,S$32) -> 350814.5931 | T132: =INDEX(Prop2022DistTar!$F$31:$F$51,T$32) -> 514448.6151 | U132: =INDEX(Prop2022DistTar!$F$31:$F$51,U$32) -> 189200.5041 | V132: =INDEX(Prop2022DistTar!$F$31:$F$51,V$32) -> 566251.0881 | W132: =INDEX(Prop2022DistTar!$F$31:$F$51,W$32) -> 470692.5401
B134: =B128 -> Proposed (1 Jan-31 Dec): Tariff V - Multinet Non-Residential | C134: =INDEX(Prop2022DistTar!$F$31:$F$51,C$32) -> 16019 | D134: =INDEX(Prop2022DistTar!$F$31:$F$51,D$32) -> 278106.3585 | E134: =INDEX(Prop2022DistTar!$F$31:$F$51,E$32) -> 422636.4949 | F134: =INDEX(Prop2022DistTar!$F$31:$F$51,F$32) -> 157292.19 | G134: =INDEX(Prop2022DistTar!$F$31:$F$51,G$32) -> 540414.172 | H134: =INDEX(Prop2022DistTar!$F$31:$F$51,H$32) -> 684466.8979 | I134: =INDEX(Prop2022DistTar!$F$31:$F$51,I$32) -> 70320.3961 | J134: =INDEX(Prop2022DistTar!$F$31:$F$51,J$32) -> 104300.1929 | K134: =INDEX(Prop2022DistTar!$F$31:$F$51,K$32) -> 38641.799 | L134: =INDEX(Prop2022DistTar!$F$31:$F$51,L$32) -> 131161.901 | M134: =INDEX(Prop2022DistTar!$F$31:$F$51,M$32) -> 153575.196 | N134: =INDEX(Prop2022DistTar!$F$31:$F$51,N$32) -> 63361.862 | O134: =INDEX(Prop2022DistTar!$F$31:$F$51,O$32) -> 90194.642 | P134: =INDEX(Prop2022DistTar!$F$31:$F$51,P$32) -> 32912.192 | Q134: =INDEX(Prop2022DistTar!$F$31:$F$51,Q$32) -> 105941.144 | R134: =INDEX(Prop2022DistTar!$F$31:$F$51,R$32) -> 103108.61 | S134: =INDEX(Prop2022DistTar!$F$31:$F$51,S$32) -> 350814.5931 | T134: =INDEX(Prop2022DistTar!$F$31:$F$51,T$32) -> 514448.6151 | U134: =INDEX(Prop2022DistTar!$F$31:$F$51,U$32) -> 189200.5041 | V134: =INDEX(Prop2022DistTar!$F$31:$F$51,V$32) -> 566251.0881 | W134: =INDEX(Prop2022DistTar!$F$31:$F$51,W$32) -> 470692.5401
B136: Distribution revenue | C136: Fixed | D136: PkBlk1 | E136: PkBlk2 | F136: PkBlk3 | G136: PkBlk4 | H136: PkBlk5 | I136: Shd1Blk1 | J136: Shd1Blk2 | K136: Shd1Blk3 | L136: Shd1Blk4 | M136: Shd1Blk5 | N136: Shd2Blk1 | O136: Shd2Blk2 | P136: Shd2Blk3 | Q136: Shd2Blk4 | R136: Shd2Blk5 | S136: OPkBlk1 | T136: OPkBlk2 | U136: OPkBlk3 | V136: OPkBlk4 | W136: OPkBlk5
B138: =B132 -> Existing (1 Jan - 31 Dec): Tariff V - Multinet Non-Residential | C138: =INDEX(Prop2022DistTar!$H$31:$H$51,C$33) -> 1764604.983 | D138: =INDEX(Prop2022DistTar!$H$31:$H$51,D$33) -> 1127888.148 | E138: =INDEX(Prop2022DistTar!$H$31:$H$51,E$33) -> 992604.0719 | F138: =INDEX(Prop2022DistTar!$H$31:$H$51,F$33) -> 221656.1541 | G138: =INDEX(Prop2022DistTar!$H$31:$H$51,G$33) -> 423792.7937 | H138: =INDEX(Prop2022DistTar!$H$31:$H$51,H$33) -> 179124.9872 | I138: =INDEX(Prop2022DistTar!$H$31:$H$51,I$33) -> 261732.5143 | J138: =INDEX(Prop2022DistTar!$H$31:$H$51,J$33) -> 220480.1778 | K138: =INDEX(Prop2022DistTar!$H$31:$H$51,K$33) -> 51729.77632 | L138: =INDEX(Prop2022DistTar!$H$31:$H$51,L$33) -> 100220.8086 | M138: =INDEX(Prop2022DistTar!$H$31:$H$51,M$33) -> 36136.24362 | N138: =INDEX(Prop2022DistTar!$H$31:$H$51,N$33) -> 235832.8504 | O138: =INDEX(Prop2022DistTar!$H$31:$H$51,O$33) -> 190662.4537 | P138: =INDEX(Prop2022DistTar!$H$31:$H$51,P$33) -> 44059.55143 | Q138: =INDEX(Prop2022DistTar!$H$31:$H$51,Q$33) -> 80949.62813 | R138: =INDEX(Prop2022DistTar!$H$31:$H$51,R$33) -> 24261.45593 | S138: =INDEX(Prop2022DistTar!$H$31:$H$51,S$33) -> 1184209.74 | T138: =INDEX(Prop2022DistTar!$H$31:$H$51,T$33) -> 1050041.068 | U138: =INDEX(Prop2022DistTar!$H$31:$H$51,U$33) -> 231165.1759 | V138: =INDEX(Prop2022DistTar!$H$31:$H$51,V$33) -> 419252.3056 | W138: =INDEX(Prop2022DistTar!$H$31:$H$51,W$33) -> 98421.81013
B140: =B134 -> Proposed (1 Jan-31 Dec): Tariff V - Multinet Non-Residential | C140: =INDEX(Prop2022DistTar!$G$31:$G$51,C$32) -> 1764604.983 | D140: =INDEX(Prop2022DistTar!$G$31:$G$51,D$32) -> 1221443.127 | E140: =INDEX(Prop2022DistTar!$G$31:$G$51,E$32) -> 1074933.661 | F140: =INDEX(Prop2022DistTar!$G$31:$G$51,F$32) -> 221656.1541 | G140: =INDEX(Prop2022DistTar!$G$31:$G$51,G$32) -> 423792.7937 | H140: =INDEX(Prop2022DistTar!$G$31:$G$51,H$32) -> 179124.9872 | I140: =INDEX(Prop2022DistTar!$G$31:$G$51,I$32) -> 283440.4206 | J140: =INDEX(Prop2022DistTar!$G$31:$G$51,J$32) -> 238764.0016 | K140: =INDEX(Prop2022DistTar!$G$31:$G$51,K$32) -> 51729.77632 | L140: =INDEX(Prop2022DistTar!$G$31:$G$51,L$32) -> 100220.8086 | M140: =INDEX(Prop2022DistTar!$G$31:$G$51,M$32) -> 36136.24362 | N140: =INDEX(Prop2022DistTar!$G$31:$G$51,N$32) -> 255392.6572 | O140: =INDEX(Prop2022DistTar!$G$31:$G$51,O$32) -> 206473.5745 | P140: =INDEX(Prop2022DistTar!$G$31:$G$51,P$32) -> 44059.55143 | Q140: =INDEX(Prop2022DistTar!$G$31:$G$51,Q$32) -> 80949.62813 | R140: =INDEX(Prop2022DistTar!$G$31:$G$51,R$32) -> 24261.45593 | S140: =INDEX(Prop2022DistTar!$G$31:$G$51,S$32) -> 1282437.827 | T140: =INDEX(Prop2022DistTar!$G$31:$G$51,T$32) -> 1137137.219 | U140: =INDEX(Prop2022DistTar!$G$31:$G$51,U$32) -> 231165.1759 | V140: =INDEX(Prop2022DistTar!$G$31:$G$51,V$32) -> 419252.3056 | W140: =INDEX(Prop2022DistTar!$G$31:$G$51,W$32) -> 98421.81013
B142: Revenue | C142: Total
B143: =B138 -> Existing (1 Jan - 31 Dec): Tariff V - Multinet Non-Residential | C143: =SUM(C137:W138) -> 8938826.698
B144: =B140 -> Proposed (1 Jan-31 Dec): Tariff V - Multinet Non-Residential | C144: =SUM(C139:W140) -> 9375398.16
B146: Average price movement | C146: =IF(C144=0,"",C144/C143) -> 1.048839907
B148: =IF(C146="","",IF(C146<=$C$13,"REBALANCING CONTROL COMPLIANT","REBALANCING CONTROL BREACHED")) -> REBALANCING CONTROL COMPLIANT
B152: =Prop2022DistTar!B75 -> Tariff V - Yarra Valley Non-Residential | C152: 1 | D152: 2 | E152: 3 | F152: 4 | G152: 5 | S152: 6 | T152: 7 | U152: 8 | V152: 9
C153: 1 | D153: 2 | E153: 3 | F153: 4 | G153: 5 | H153: 6 | I153: 7 | J153: 8 | K153: 9 | L153: 10 | M153: 11 | S153: 12 | T153: 13 | U153: 14 | V153: 15 | W153: 16
B154: Distribution tariff | C154: Fixed | D154: PkBlk1 | E154: PkBlk2 | F154: PkBlk3 | G154: PkBlk4 | H154: PkBlk5 | I154: Shd1Blk1 | J154: Shd1Blk2 | K154: Shd1Blk3 | L154: Shd1Blk4 | M154: Shd1Blk5 | N154: Shd2Blk1 | O154: Shd2Blk2 | P154: Shd2Blk3 | Q154: Shd2Blk4 | R154: Shd2Blk5 | S154: OPkBlk1 | T154: OPkBlk2 | U154: OPkBlk3 | V154: OPkBlk4 | W154: OPkBlk5
B156: ="Existing (1 Jan - 31 Dec): "&Prop2022DistTar!C75 -> Existing (1 Jan - 31 Dec): Tariff V - Yarra Valley Non-Residential | C156: =INDEX(Prop2022DistTar!$E$77:$E$97,C$33) -> 0.3004 | D156: =INDEX(Prop2022DistTar!$E$77:$E$97,D$33) -> 6.8072 | E156: =INDEX(Prop2022DistTar!$E$77:$E$97,E$33) -> 5.1199 | F156: =INDEX(Prop2022DistTar!$E$77:$E$97,F$33) -> 4.3555 | G156: =INDEX(Prop2022DistTar!$E$77:$E$97,G$33) -> 3.8468 | H156: =INDEX(Prop2022DistTar!$E$77:$E$97,H$33) -> 3.4214 | I156: =INDEX(Prop2022DistTar!$E$77:$E$97,I$33) -> 6.5355 | J156: =INDEX(Prop2022DistTar!$E$77:$E$97,J$33) -> 4.9288 | K156: =INDEX(Prop2022DistTar!$E$77:$E$97,K$33) -> 4.298 | L156: =INDEX(Prop2022DistTar!$E$77:$E$97,L$33) -> 3.8304 | M156: =INDEX(Prop2022DistTar!$E$77:$E$97,M$33) -> 3.4001 | N156: =INDEX(Prop2022DistTar!$E$77:$E$97,N$33) -> 6.5355 | O156: =INDEX(Prop2022DistTar!$E$77:$E$97,O$33) -> 4.9288 | P156: =INDEX(Prop2022DistTar!$E$77:$E$97,P$33) -> 4.298 | Q156: =INDEX(Prop2022DistTar!$E$77:$E$97,Q$33) -> 3.8304 | R156: =INDEX(Prop2022DistTar!$E$77:$E$97,R$33) -> 3.4001 | S156: =INDEX(Prop2022DistTar!$E$77:$E$97,S$33) -> 6.2533 | T156: =INDEX(Prop2022DistTar!$E$77:$E$97,T$33) -> 4.8698 | U156: =INDEX(Prop2022DistTar!$E$77:$E$97,U$33) -> 4.2028 | V156: =INDEX(Prop2022DistTar!$E$77:$E$97,V$33) -> 3.8112 | W156: =INDEX(Prop2022DistTar!$E$77:$E$97,W$33) -> 3.3787
B158: ="Proposed (1 Jan-31 Dec): "&B152 -> Proposed (1 Jan-31 Dec): Tariff V - Yarra Valley Non-Residential | C158: =INDEX(Prop2022DistTar!$D$77:$D$97,C$32) -> 0.3004 | D158: =INDEX(Prop2022DistTar!$D$77:$D$97,D$32) -> 7.3718 | E158: =INDEX(Prop2022DistTar!$D$77:$D$97,E$32) -> 5.5446 | F158: =INDEX(Prop2022DistTar!$D$77:$D$97,F$32) -> 4.3555 | G158: =INDEX(Prop2022DistTar!$D$77:$D$97,G$32) -> 3.8468 | H158: =INDEX(Prop2022DistTar!$D$77:$D$97,H$32) -> 3.4214 | I158: =INDEX(Prop2022DistTar!$D$77:$D$97,I$32) -> 7.0776 | J158: =INDEX(Prop2022DistTar!$D$77:$D$97,J$32) -> 5.3376 | K158: =INDEX(Prop2022DistTar!$D$77:$D$97,K$32) -> 4.298 | L158: =INDEX(Prop2022DistTar!$D$77:$D$97,L$32) -> 3.8304 | M158: =INDEX(Prop2022DistTar!$D$77:$D$97,M$32) -> 3.4001 | N158: =INDEX(Prop2022DistTar!$D$77:$D$97,N$32) -> 7.0776 | O158: =INDEX(Prop2022DistTar!$D$77:$D$97,O$32) -> 5.3376 | P158: =INDEX(Prop2022DistTar!$D$77:$D$97,P$32) -> 4.298 | Q158: =INDEX(Prop2022DistTar!$D$77:$D$97,Q$32) -> 3.8304 | R158: =INDEX(Prop2022DistTar!$D$77:$D$97,R$32) -> 3.4001 | S158: =INDEX(Prop2022DistTar!$D$77:$D$97,S$32) -> 6.772 | T158: =INDEX(Prop2022DistTar!$D$77:$D$97,T$32) -> 5.2737 | U158: =INDEX(Prop2022DistTar!$D$77:$D$97,U$32) -> 4.2028 | V158: =INDEX(Prop2022DistTar!$D$77:$D$97,V$32) -> 3.8112 | W158: =INDEX(Prop2022DistTar!$D$77:$D$97,W$32) -> 3.3787
B160: Distribution volumes (actual) | C160: Fixed | D160: PkBlk1 | E160: PkBlk2 | F160: PkBlk3 | G160: PkBlk4 | H160: PkBlk5 | I160: Shd1Blk1 | J160: Shd1Blk2 | K160: Shd1Blk3 | L160: Shd1Blk4 | M160: Shd1Blk5 | N160: Shd2Blk1 | O160: Shd2Blk2 | P160: Shd2Blk3 | Q160: Shd2Blk4 | R160: Shd2Blk5 | S160: OPkBlk1 | T160: OPkBlk2 | U160: OPkBlk3 | V160: OPkBlk4 | W160: OPkBlk5
B162: =B156 -> Existing (1 Jan - 31 Dec): Tariff V - Yarra Valley Non-Residential | C162: =INDEX(Prop2022DistTar!$F$77:$F$97,C$32) -> 71 | D162: =INDEX(Prop2022DistTar!$F$77:$F$97,D$32) -> 1439.967 | E162: =INDEX(Prop2022DistTar!$F$77:$F$97,E$32) -> 1829.804 | F162: =INDEX(Prop2022DistTar!$F$77:$F$97,F$32) -> 507.568 | G162: =INDEX(Prop2022DistTar!$F$77:$F$97,G$32) -> 1473.808 | H162: =INDEX(Prop2022DistTar!$F$77:$F$97,H$32) -> 4175.209 | I162: =INDEX(Prop2022DistTar!$F$77:$F$97,I$32) -> 362.354 | J162: =INDEX(Prop2022DistTar!$F$77:$F$97,J$32) -> 480.126 | K162: =INDEX(Prop2022DistTar!$F$77:$F$97,K$32) -> 128.135 | L162: =INDEX(Prop2022DistTar!$F$77:$F$97,L$32) -> 362.267 | M162: =INDEX(Prop2022DistTar!$F$77:$F$97,M$32) -> 1026.586 | N162: =INDEX(Prop2022DistTar!$F$77:$F$97,N$32) -> 330.993 | O162: =INDEX(Prop2022DistTar!$F$77:$F$97,O$32) -> 381.014 | P162: =INDEX(Prop2022DistTar!$F$77:$F$97,P$32) -> 86.654 | Q162: =INDEX(Prop2022DistTar!$F$77:$F$97,Q$32) -> 248.749 | R162: =INDEX(Prop2022DistTar!$F$77:$F$97,R$32) -> 588.967 | S162: =INDEX(Prop2022DistTar!$F$77:$F$97,S$32) -> 1803.521 | T162: =INDEX(Prop2022DistTar!$F$77:$F$97,T$32) -> 2078.274 | U162: =INDEX(Prop2022DistTar!$F$77:$F$97,U$32) -> 396.327 | V162: =INDEX(Prop2022DistTar!$F$77:$F$97,V$32) -> 1604.842 | W162: =INDEX(Prop2022DistTar!$F$77:$F$97,W$32) -> 2332.514
B164: =B158 -> Proposed (1 Jan-31 Dec): Tariff V - Yarra Valley Non-Residential | C164: =INDEX(Prop2022DistTar!$F$77:$F$97,C$32) -> 71 | D164: =INDEX(Prop2022DistTar!$F$77:$F$97,D$32) -> 1439.967 | E164: =INDEX(Prop2022DistTar!$F$77:$F$97,E$32) -> 1829.804 | F164: =INDEX(Prop2022DistTar!$F$77:$F$97,F$32) -> 507.568 | G164: =INDEX(Prop2022DistTar!$F$77:$F$97,G$32) -> 1473.808 | H164: =INDEX(Prop2022DistTar!$F$77:$F$97,H$32) -> 4175.209 | I164: =INDEX(Prop2022DistTar!$F$77:$F$97,I$32) -> 362.354 | J164: =INDEX(Prop2022DistTar!$F$77:$F$97,J$32) -> 480.126 | K164: =INDEX(Prop2022DistTar!$F$77:$F$97,K$32) -> 128.135 | L164: =INDEX(Prop2022DistTar!$F$77:$F$97,L$32) -> 362.267 | M164: =INDEX(Prop2022DistTar!$F$77:$F$97,M$32) -> 1026.586 | N164: =INDEX(Prop2022DistTar!$F$77:$F$97,N$32) -> 330.993 | O164: =INDEX(Prop2022DistTar!$F$77:$F$97,O$32) -> 381.014 | P164: =INDEX(Prop2022DistTar!$F$77:$F$97,P$32) -> 86.654 | Q164: =INDEX(Prop2022DistTar!$F$77:$F$97,Q$32) -> 248.749 | R164: =INDEX(Prop2022DistTar!$F$77:$F$97,R$32) -> 588.967 | S164: =INDEX(Prop2022DistTar!$F$77:$F$97,S$32) -> 1803.521 | T164: =INDEX(Prop2022DistTar!$F$77:$F$97,T$32) -> 2078.274 | U164: =INDEX(Prop2022DistTar!$F$77:$F$97,U$32) -> 396.327 | V164: =INDEX(Prop2022DistTar!$F$77:$F$97,V$32) -> 1604.842 | W164: =INDEX(Prop2022DistTar!$F$77:$F$97,W$32) -> 2332.514
B166: Distribution revenue | C166: Fixed | D166: PkBlk1 | E166: PkBlk2 | F166: PkBlk3 | G166: PkBlk4 | H166: PkBlk5 | I166: Shd1Blk1 | J166: Shd1Blk2 | K166: Shd1Blk3 | L166: Shd1Blk4 | M166: Shd1Blk5 | N166: Shd2Blk1 | O166: Shd2Blk2 | P166: Shd2Blk3 | Q166: Shd2Blk4 | R166: Shd2Blk5 | S166: OPkBlk1 | T166: OPkBlk2 | U166: OPkBlk3 | V166: OPkBlk4 | W166: OPkBlk5
B168: =B162 -> Existing (1 Jan - 31 Dec): Tariff V - Yarra Valley Non-Residential | C168: =INDEX(Prop2022DistTar!$H$77:$H$97,C$33) -> 7784.866 | D168: =INDEX(Prop2022DistTar!$H$77:$H$97,D$33) -> 9802.143362 | E168: =INDEX(Prop2022DistTar!$H$77:$H$97,E$33) -> 9368.4135 | F168: =INDEX(Prop2022DistTar!$H$77:$H$97,F$33) -> 2210.712424 | G168: =INDEX(Prop2022DistTar!$H$77:$H$97,G$33) -> 5669.444614 | H168: =INDEX(Prop2022DistTar!$H$77:$H$97,H$33) -> 14285.06007 | I168: =INDEX(Prop2022DistTar!$H$77:$H$97,I$33) -> 2368.164567 | J168: =INDEX(Prop2022DistTar!$H$77:$H$97,J$33) -> 2366.445029 | K168: =INDEX(Prop2022DistTar!$H$77:$H$97,K$33) -> 550.72423 | L168: =INDEX(Prop2022DistTar!$H$77:$H$97,L$33) -> 1387.627517 | M168: =INDEX(Prop2022DistTar!$H$77:$H$97,M$33) -> 3490.495059 | N168: =INDEX(Prop2022DistTar!$H$77:$H$97,N$33) -> 2163.204751 | O168: =INDEX(Prop2022DistTar!$H$77:$H$97,O$33) -> 1877.941803 | P168: =INDEX(Prop2022DistTar!$H$77:$H$97,P$33) -> 372.438892 | Q168: =INDEX(Prop2022DistTar!$H$77:$H$97,Q$33) -> 952.8081696 | R168: =INDEX(Prop2022DistTar!$H$77:$H$97,R$33) -> 2002.546697 | S168: =INDEX(Prop2022DistTar!$H$77:$H$97,S$33) -> 11277.95787 | T168: =INDEX(Prop2022DistTar!$H$77:$H$97,T$33) -> 10120.77873 | U168: =INDEX(Prop2022DistTar!$H$77:$H$97,U$33) -> 1665.683116 | V168: =INDEX(Prop2022DistTar!$H$77:$H$97,V$33) -> 6116.37383 | W168: =INDEX(Prop2022DistTar!$H$77:$H$97,W$33) -> 7880.865052
B170: =B164 -> Proposed (1 Jan-31 Dec): Tariff V - Yarra Valley Non-Residential | C170: =INDEX(Prop2022DistTar!$G$77:$G$97,C$32) -> 7784.866 | D170: =INDEX(Prop2022DistTar!$G$77:$G$97,D$32) -> 10615.14873 | E170: =INDEX(Prop2022DistTar!$G$77:$G$97,E$32) -> 10145.53126 | F170: =INDEX(Prop2022DistTar!$G$77:$G$97,F$32) -> 2210.712424 | G170: =INDEX(Prop2022DistTar!$G$77:$G$97,G$32) -> 5669.444614 | H170: =INDEX(Prop2022DistTar!$G$77:$G$97,H$32) -> 14285.06007 | I170: =INDEX(Prop2022DistTar!$G$77:$G$97,I$32) -> 2564.59667 | J170: =INDEX(Prop2022DistTar!$G$77:$G$97,J$32) -> 2562.720538 | K170: =INDEX(Prop2022DistTar!$G$77:$G$97,K$32) -> 550.72423 | L170: =INDEX(Prop2022DistTar!$G$77:$G$97,L$32) -> 1387.627517 | M170: =INDEX(Prop2022DistTar!$G$77:$G$97,M$32) -> 3490.495059 | N170: =INDEX(Prop2022DistTar!$G$77:$G$97,N$32) -> 2342.636057 | O170: =INDEX(Prop2022DistTar!$G$77:$G$97,O$32) -> 2033.700326 | P170: =INDEX(Prop2022DistTar!$G$77:$G$97,P$32) -> 372.438892 | Q170: =INDEX(Prop2022DistTar!$G$77:$G$97,Q$32) -> 952.8081696 | R170: =INDEX(Prop2022DistTar!$G$77:$G$97,R$32) -> 2002.546697 | S170: =INDEX(Prop2022DistTar!$G$77:$G$97,S$32) -> 12213.44421 | T170: =INDEX(Prop2022DistTar!$G$77:$G$97,T$32) -> 10960.19359 | U170: =INDEX(Prop2022DistTar!$G$77:$G$97,U$32) -> 1665.683116 | V170: =INDEX(Prop2022DistTar!$G$77:$G$97,V$32) -> 6116.37383 | W170: =INDEX(Prop2022DistTar!$G$77:$G$97,W$32) -> 7880.865052
B172: Revenue | C172: Total
B173: =B168 -> Existing (1 Jan - 31 Dec): Tariff V - Yarra Valley Non-Residential | C173: =SUM(C167:W168) -> 103714.6953
B174: =B170 -> Proposed (1 Jan-31 Dec): Tariff V - Yarra Valley Non-Residential | C174: =SUM(C169:W170) -> 107807.6171
B176: Average price movement | C176: =IF(C174=0,"",C174/C173) -> 1.039463277
B178: =IF(C176="","",IF(C176<=$C$13,"REBALANCING CONTROL COMPLIANT","REBALANCING CONTROL BREACHED")) -> REBALANCING CONTROL COMPLIANT
B182: =Prop2022DistTar!B121 -> Tariff V - South Gippsland Non-Residential | C182: 1 | D182: 2 | E182: 3 | F182: 4 | G182: 5 | S182: 6 | T182: 7 | U182: 8 | V182: 9
C183: 1 | D183: 2 | E183: 3 | F183: 4 | G183: 5 | H183: 6 | I183: 7 | J183: 8 | K183: 9 | L183: 10 | M183: 11 | S183: 12 | T183: 13 | U183: 14 | V183: 15 | W183: 16
B184: Distribution tariff | C184: Fixed | D184: PkBlk1 | E184: PkBlk2 | F184: PkBlk3 | G184: PkBlk4 | H184: PkBlk5 | I184: Shd1Blk1 | J184: Shd1Blk2 | K184: Shd1Blk3 | L184: Shd1Blk4 | M184: Shd1Blk5 | N184: Shd2Blk1 | O184: Shd2Blk2 | P184: Shd2Blk3 | Q184: Shd2Blk4 | R184: Shd2Blk5 | S184: OPkBlk1 | T184: OPkBlk2 | U184: OPkBlk3 | V184: OPkBlk4 | W184: OPkBlk5
B186: ="Existing (1 Jan - 31 Dec): "&Prop2022DistTar!C121 -> Existing (1 Jan - 31 Dec): Tariff V - South Gippsland Non-Residential | C186: =INDEX(Prop2022DistTar!$E$123:$E$143,C$33) -> 0.3018 | D186: =INDEX(Prop2022DistTar!$E$123:$E$143,D$33) -> 7.508 | E186: =INDEX(Prop2022DistTar!$E$123:$E$143,E$33) -> 5.6927 | F186: =INDEX(Prop2022DistTar!$E$123:$E$143,F$33) -> 4.8807 | G186: =INDEX(Prop2022DistTar!$E$123:$E$143,G$33) -> 4.3408 | H186: =INDEX(Prop2022DistTar!$E$123:$E$143,H$33) -> 3.889 | I186: =INDEX(Prop2022DistTar!$E$123:$E$143,I$33) -> 7.2196 | J186: =INDEX(Prop2022DistTar!$E$123:$E$143,J$33) -> 5.4896 | K186: =INDEX(Prop2022DistTar!$E$123:$E$143,K$33) -> 4.8199 | L186: =INDEX(Prop2022DistTar!$E$123:$E$143,L$33) -> 4.3232 | M186: =INDEX(Prop2022DistTar!$E$123:$E$143,M$33) -> 3.8662 | N186: =INDEX(Prop2022DistTar!$E$123:$E$143,N$33) -> 7.2196 | O186: =INDEX(Prop2022DistTar!$E$123:$E$143,O$33) -> 5.4896 | P186: =INDEX(Prop2022DistTar!$E$123:$E$143,P$33) -> 4.8199 | Q186: =INDEX(Prop2022DistTar!$E$123:$E$143,Q$33) -> 4.3232 | R186: =INDEX(Prop2022DistTar!$E$123:$E$143,R$33) -> 3.8662 | S186: =INDEX(Prop2022DistTar!$E$123:$E$143,S$33) -> 6.9201 | T186: =INDEX(Prop2022DistTar!$E$123:$E$143,T$33) -> 5.4269 | U186: =INDEX(Prop2022DistTar!$E$123:$E$143,U$33) -> 4.7186 | V186: =INDEX(Prop2022DistTar!$E$123:$E$143,V$33) -> 4.3028 | W186: =INDEX(Prop2022DistTar!$E$123:$E$143,W$33) -> 3.8436
B188: ="Proposed (1 Jan-31 Dec): "&B182 -> Proposed (1 Jan-31 Dec): Tariff V - South Gippsland Non-Residential | C188: =INDEX(Prop2022DistTar!$D$123:$D$143,C$32) -> 0.3018 | D188: =INDEX(Prop2022DistTar!$D$123:$D$143,D$32) -> 8.1307 | E188: =INDEX(Prop2022DistTar!$D$123:$D$143,E$32) -> 6.1649 | F188: =INDEX(Prop2022DistTar!$D$123:$D$143,F$32) -> 4.8807 | G188: =INDEX(Prop2022DistTar!$D$123:$D$143,G$32) -> 4.3408 | H188: =INDEX(Prop2022DistTar!$D$123:$D$143,H$32) -> 3.889 | I188: =INDEX(Prop2022DistTar!$D$123:$D$143,I$32) -> 7.8184 | J188: =INDEX(Prop2022DistTar!$D$123:$D$143,J$32) -> 5.9449 | K188: =INDEX(Prop2022DistTar!$D$123:$D$143,K$32) -> 4.8199 | L188: =INDEX(Prop2022DistTar!$D$123:$D$143,L$32) -> 4.3232 | M188: =INDEX(Prop2022DistTar!$D$123:$D$143,M$32) -> 3.8662 | N188: =INDEX(Prop2022DistTar!$D$123:$D$143,N$32) -> 7.8184 | O188: =INDEX(Prop2022DistTar!$D$123:$D$143,O$32) -> 5.9449 | P188: =INDEX(Prop2022DistTar!$D$123:$D$143,P$32) -> 4.8199 | Q188: =INDEX(Prop2022DistTar!$D$123:$D$143,Q$32) -> 4.3232 | R188: =INDEX(Prop2022DistTar!$D$123:$D$143,R$32) -> 3.8662 | S188: =INDEX(Prop2022DistTar!$D$123:$D$143,S$32) -> 7.4941 | T188: =INDEX(Prop2022DistTar!$D$123:$D$143,T$32) -> 5.877 | U188: =INDEX(Prop2022DistTar!$D$123:$D$143,U$32) -> 4.7186 | V188: =INDEX(Prop2022DistTar!$D$123:$D$143,V$32) -> 4.3028 | W188: =INDEX(Prop2022DistTar!$D$123:$D$143,W$32) -> 3.8436
B190: Distribution volumes (actual) | C190: Fixed | D190: PkBlk1 | E190: PkBlk2 | F190: PkBlk3 | G190: PkBlk4 | H190: PkBlk5 | I190: Shd1Blk1 | J190: Shd1Blk2 | K190: Shd1Blk3 | L190: Shd1Blk4 | M190: Shd1Blk5 | N190: Shd2Blk1 | O190: Shd2Blk2 | P190: Shd2Blk3 | Q190: Shd2Blk4 | R190: Shd2Blk5 | S190: OPkBlk1 | T190: OPkBlk2 | U190: OPkBlk3 | V190: OPkBlk4 | W190: OPkBlk5
B192: =B186 -> Existing (1 Jan - 31 Dec): Tariff V - South Gippsland Non-Residential | C192: =INDEX(Prop2022DistTar!$F$123:$F$143,C$32) -> 118 | D192: =INDEX(Prop2022DistTar!$F$123:$F$143,D$32) -> 2452.187 | E192: =INDEX(Prop2022DistTar!$F$123:$F$143,E$32) -> 4544.489 | F192: =INDEX(Prop2022DistTar!$F$123:$F$143,F$32) -> 1929.584 | G192: =INDEX(Prop2022DistTar!$F$123:$F$143,G$32) -> 7929.113 | H192: =INDEX(Prop2022DistTar!$F$123:$F$143,H$32) -> 11791.799 | I192: =INDEX(Prop2022DistTar!$F$123:$F$143,I$32) -> 586.504 | J192: =INDEX(Prop2022DistTar!$F$123:$F$143,J$32) -> 1023.108 | K192: =INDEX(Prop2022DistTar!$F$123:$F$143,K$32) -> 424.142 | L192: =INDEX(Prop2022DistTar!$F$123:$F$143,L$32) -> 1865.411 | M192: =INDEX(Prop2022DistTar!$F$123:$F$143,M$32) -> 2087.732 | N192: =INDEX(Prop2022DistTar!$F$123:$F$143,N$32) -> 563.321 | O192: =INDEX(Prop2022DistTar!$F$123:$F$143,O$32) -> 1039.076 | P192: =INDEX(Prop2022DistTar!$F$123:$F$143,P$32) -> 427.292 | Q192: =INDEX(Prop2022DistTar!$F$123:$F$143,Q$32) -> 1759.251 | R192: =INDEX(Prop2022DistTar!$F$123:$F$143,R$32) -> 2222.767 | S192: =INDEX(Prop2022DistTar!$F$123:$F$143,S$32) -> 3063.13 | T192: =INDEX(Prop2022DistTar!$F$123:$F$143,T$32) -> 5807.898 | U192: =INDEX(Prop2022DistTar!$F$123:$F$143,U$32) -> 2613.961 | V192: =INDEX(Prop2022DistTar!$F$123:$F$143,V$32) -> 10002.494 | W192: =INDEX(Prop2022DistTar!$F$123:$F$143,W$32) -> 10375.37
B194: =B188 -> Proposed (1 Jan-31 Dec): Tariff V - South Gippsland Non-Residential | C194: =INDEX(Prop2022DistTar!$F$123:$F$143,C$32) -> 118 | D194: =INDEX(Prop2022DistTar!$F$123:$F$143,D$32) -> 2452.187 | E194: =INDEX(Prop2022DistTar!$F$123:$F$143,E$32) -> 4544.489 | F194: =INDEX(Prop2022DistTar!$F$123:$F$143,F$32) -> 1929.584 | G194: =INDEX(Prop2022DistTar!$F$123:$F$143,G$32) -> 7929.113 | H194: =INDEX(Prop2022DistTar!$F$123:$F$143,H$32) -> 11791.799 | I194: =INDEX(Prop2022DistTar!$F$123:$F$143,I$32) -> 586.504 | J194: =INDEX(Prop2022DistTar!$F$123:$F$143,J$32) -> 1023.108 | K194: =INDEX(Prop2022DistTar!$F$123:$F$143,K$32) -> 424.142 | L194: =INDEX(Prop2022DistTar!$F$123:$F$143,L$32) -> 1865.411 | M194: =INDEX(Prop2022DistTar!$F$123:$F$143,M$32) -> 2087.732 | N194: =INDEX(Prop2022DistTar!$F$123:$F$143,N$32) -> 563.321 | O194: =INDEX(Prop2022DistTar!$F$123:$F$143,O$32) -> 1039.076 | P194: =INDEX(Prop2022DistTar!$F$123:$F$143,P$32) -> 427.292 | Q194: =INDEX(Prop2022DistTar!$F$123:$F$143,Q$32) -> 1759.251 | R194: =INDEX(Prop2022DistTar!$F$123:$F$143,R$32) -> 2222.767 | S194: =INDEX(Prop2022DistTar!$F$123:$F$143,S$32) -> 3063.13 | T194: =INDEX(Prop2022DistTar!$F$123:$F$143,T$32) -> 5807.898 | U194: =INDEX(Prop2022DistTar!$F$123:$F$143,U$32) -> 2613.961 | V194: =INDEX(Prop2022DistTar!$F$123:$F$143,V$32) -> 10002.494 | W194: =INDEX(Prop2022DistTar!$F$123:$F$143,W$32) -> 10375.37
B196: Distribution revenue | C196: Fixed | D196: PkBlk1 | E196: PkBlk2 | F196: PkBlk3 | G196: PkBlk4 | H196: PkBlk5 | I196: Shd1Blk1 | J196: Shd1Blk2 | K196: Shd1Blk3 | L196: Shd1Blk4 | M196: Shd1Blk5 | N196: Shd2Blk1 | O196: Shd2Blk2 | P196: Shd2Blk3 | Q196: Shd2Blk4 | R196: Shd2Blk5 | S196: OPkBlk1 | T196: OPkBlk2 | U196: OPkBlk3 | V196: OPkBlk4 | W196: OPkBlk5
B198: =B192 -> Existing (1 Jan - 31 Dec): Tariff V - South Gippsland Non-Residential | C198: =INDEX(Prop2022DistTar!$H$123:$H$143,C$33) -> 12998.526 | D198: =INDEX(Prop2022DistTar!$H$123:$H$143,D$33) -> 18411.02 | E198: =INDEX(Prop2022DistTar!$H$123:$H$143,E$33) -> 25870.41253 | F198: =INDEX(Prop2022DistTar!$H$123:$H$143,F$33) -> 9417.720629 | G198: =INDEX(Prop2022DistTar!$H$123:$H$143,G$33) -> 34418.69371 | H198: =INDEX(Prop2022DistTar!$H$123:$H$143,H$33) -> 45858.30631 | I198: =INDEX(Prop2022DistTar!$H$123:$H$143,I$33) -> 4234.324278 | J198: =INDEX(Prop2022DistTar!$H$123:$H$143,J$33) -> 5616.453677 | K198: =INDEX(Prop2022DistTar!$H$123:$H$143,K$33) -> 2044.322026 | L198: =INDEX(Prop2022DistTar!$H$123:$H$143,L$33) -> 8064.544835 | M198: =INDEX(Prop2022DistTar!$H$123:$H$143,M$33) -> 8071.589458 | N198: =INDEX(Prop2022DistTar!$H$123:$H$143,N$33) -> 4066.952292 | O198: =INDEX(Prop2022DistTar!$H$123:$H$143,O$33) -> 5704.11161 | P198: =INDEX(Prop2022DistTar!$H$123:$H$143,P$33) -> 2059.504711 | Q198: =INDEX(Prop2022DistTar!$H$123:$H$143,Q$33) -> 7605.593923 | R198: =INDEX(Prop2022DistTar!$H$123:$H$143,R$33) -> 8593.661775 | S198: =INDEX(Prop2022DistTar!$H$123:$H$143,S$33) -> 21197.16591 | T198: =INDEX(Prop2022DistTar!$H$123:$H$143,T$33) -> 31518.88166 | U198: =INDEX(Prop2022DistTar!$H$123:$H$143,U$33) -> 12334.23637 | V198: =INDEX(Prop2022DistTar!$H$123:$H$143,V$33) -> 43038.73118 | W198: =INDEX(Prop2022DistTar!$H$123:$H$143,W$33) -> 39878.77213
B200: =B194 -> Proposed (1 Jan-31 Dec): Tariff V - South Gippsland Non-Residential | C200: =INDEX(Prop2022DistTar!$G$123:$G$143,C$32) -> 12998.526 | D200: =INDEX(Prop2022DistTar!$G$123:$G$143,D$32) -> 19937.99684 | E200: =INDEX(Prop2022DistTar!$G$123:$G$143,E$32) -> 28016.32024 | F200: =INDEX(Prop2022DistTar!$G$123:$G$143,F$32) -> 9417.720629 | G200: =INDEX(Prop2022DistTar!$G$123:$G$143,G$32) -> 34418.69371 | H200: =INDEX(Prop2022DistTar!$G$123:$G$143,H$32) -> 45858.30631 | I200: =INDEX(Prop2022DistTar!$G$123:$G$143,I$32) -> 4585.522874 | J200: =INDEX(Prop2022DistTar!$G$123:$G$143,J$32) -> 6082.274749 | K200: =INDEX(Prop2022DistTar!$G$123:$G$143,K$32) -> 2044.322026 | L200: =INDEX(Prop2022DistTar!$G$123:$G$143,L$32) -> 8064.544835 | M200: =INDEX(Prop2022DistTar!$G$123:$G$143,M$32) -> 8071.589458 | N200: =INDEX(Prop2022DistTar!$G$123:$G$143,N$32) -> 4404.268906 | O200: =INDEX(Prop2022DistTar!$G$123:$G$143,O$32) -> 6177.202912 | P200: =INDEX(Prop2022DistTar!$G$123:$G$143,P$32) -> 2059.504711 | Q200: =INDEX(Prop2022DistTar!$G$123:$G$143,Q$32) -> 7605.593923 | R200: =INDEX(Prop2022DistTar!$G$123:$G$143,R$32) -> 8593.661775 | S200: =INDEX(Prop2022DistTar!$G$123:$G$143,S$32) -> 22955.40253 | T200: =INDEX(Prop2022DistTar!$G$123:$G$143,T$32) -> 34133.01655 | U200: =INDEX(Prop2022DistTar!$G$123:$G$143,U$32) -> 12334.23637 | V200: =INDEX(Prop2022DistTar!$G$123:$G$143,V$32) -> 43038.73118 | W200: =INDEX(Prop2022DistTar!$G$123:$G$143,W$32) -> 39878.77213
B202: Revenue | C202: Total
B203: =B198 -> Existing (1 Jan - 31 Dec): Tariff V - South Gippsland Non-Residential | C203: =SUM(C197:W198) -> 351003.525
B204: =B200 -> Proposed (1 Jan-31 Dec): Tariff V - South Gippsland Non-Residential | C204: =SUM(C199:W200) -> 360676.2087
B206: Average price movement | C206: =IF(C204=0,"",C204/C203) -> 1.027557227
B208: =IF(C206="","",IF(C206<=$C$13,"REBALANCING CONTROL COMPLIANT","REBALANCING CONTROL BREACHED")) -> REBALANCING CONTROL COMPLIANT
B212: =Prop2022DistTar!B145 -> Tariff D - Multinet
C213: 1 | D213: 2
B214: Distribution tariff | C214: DemBlk1 | D214: DemBlk2
B215: ="Existing: "&Prop2022DistTar!C145 -> Existing: Tariff D - Multinet | C215: =INDEX(Prop2022DistTar!$E$146:$E$147,C213) -> 598.9217 | D215: =INDEX(Prop2022DistTar!$E$146:$E$147,D213) -> 101.9014
B216: ="Proposed: "&B212 -> Proposed: Tariff D - Multinet | C216: =INDEX(Prop2022DistTar!$D$146:$D$147,C213) -> 621.909 | D216: =INDEX(Prop2022DistTar!$D$146:$D$147,D213) -> 105.8207
B218: Distribution volumes (actual) | C218: DemBlk1 | D218: DemBlk2
B219: =B215 -> Existing: Tariff D - Multinet | C219: =INDEX(Prop2022DistTar!$F$146:$F$147,C$213) -> 2886.22 | D219: =INDEX(Prop2022DistTar!$F$146:$F$147,D$213) -> 452.51
B220: =B216 -> Proposed: Tariff D - Multinet | C220: =INDEX(Prop2022DistTar!$F$146:$F$147,C$213) -> 2886.22 | D220: =INDEX(Prop2022DistTar!$F$146:$F$147,D$213) -> 452.51
B222: Distribution revenue | C222: DemBlk1 | D222: DemBlk2
B223: =B219 -> Existing: Tariff D - Multinet | C223: =INDEX(Prop2022DistTar!$H$146:$H$147,C213) -> 1728619.789 | D223: =INDEX(Prop2022DistTar!$H$146:$H$147,D213) -> 46111.40251
B224: =B220 -> Proposed: Tariff D - Multinet | C224: =INDEX(Prop2022DistTar!$G$146:$G$147,C213) -> 1794966.194 | D224: =INDEX(Prop2022DistTar!$G$146:$G$147,D213) -> 47884.92496
B226: Revenue | C226: Total
B227: =B223 -> Existing: Tariff D - Multinet | C227: =SUM(C223:D223) -> 1774731.191
B228: =B224 -> Proposed: Tariff D - Multinet | C228: =SUM(C224:D224) -> 1842851.119
B230: Average price movement | C230: =IF(C228=0,"",C228/C227) -> 1.038383237
B232: =IF(C230="","",IF(C230<=$C$13,"REBALANCING CONTROL COMPLIANT","REBALANCING CONTROL BREACHED")) -> REBALANCING CONTROL COMPLIANT
B235: =Prop2022DistTar!B149 -> Tariff L- Multinet Non-Residential | C235: 1 | D235: 2 | E235: 3 | F235: 4 | G235: 5
C236: 1 | D236: 2 | E236: 3 | I236: 4 | J236: 5 | N236: 6
B237: Distribution tariff | C237: Fixed | D237: PkBlk1 | E237: PkBlk2 | F237: Shd1Blk1 | G237: Shd1Blk2 | H237: Shd2Blk1 | I237: Shd2Blk2 | J237: OffPkBlk1 | K237: OffPkBlk2 | M237: Rolling12 | N237: PD
B239: ="Existing (1 Jan - 31 Dec): "&Prop2022DistTar!C149 -> Existing (1 Jan - 31 Dec): Tariff L- Multinet Non-Residential | C239: =INDEX(Prop2022DistTar!$E$151:$E$162,C$33) -> 0 | D239: =INDEX(Prop2022DistTar!$E$151:$E$162,D$33) -> 0.6416 | E239: =INDEX(Prop2022DistTar!$E$151:$E$162,E$33) -> 0.1376 | F239: =INDEX(Prop2022DistTar!$E$151:$E$162,F$33) -> 0.5688 | G239: =INDEX(Prop2022DistTar!$E$151:$E$162,G$33) -> 0.1292 | H239: =INDEX(Prop2022DistTar!$E$151:$E$162,H$33) -> 0.5688 | I239: =INDEX(Prop2022DistTar!$E$151:$E$162,I$33) -> 0.1292 | J239: =INDEX(Prop2022DistTar!$E$151:$E$162,J$33) -> 0.451 | K239: =INDEX(Prop2022DistTar!$E$151:$E$162,K$33) -> 0.1026 | L239: =INDEX(Prop2022DistTar!$E$151:$E$162,L$33) -> 0 | M239: =INDEX(Prop2022DistTar!$E$151:$E$162,M$33) -> 0.5965 | N239: =INDEX(Prop2022DistTar!$E$151:$E$162,N$33) -> 1.7846
B241: ="Proposed (1 Jan-31 Dec): "&B235 -> Proposed (1 Jan-31 Dec): Tariff L- Multinet Non-Residential | C241: =INDEX(Prop2022DistTar!$D$151:$D$162,C$33) -> 0 | D241: =INDEX(Prop2022DistTar!$D$151:$D$162,D$33) -> 0.6416 | E241: =INDEX(Prop2022DistTar!$D$151:$D$162,E$33) -> 0.1376 | F241: =INDEX(Prop2022DistTar!$D$151:$D$162,F$33) -> 0.5688 | G241: =INDEX(Prop2022DistTar!$D$151:$D$162,G$33) -> 0.1292 | H241: =INDEX(Prop2022DistTar!$D$151:$D$162,H$33) -> 0.5688 | I241: =INDEX(Prop2022DistTar!$D$151:$D$162,I$33) -> 0.1292 | J241: =INDEX(Prop2022DistTar!$D$151:$D$162,J$33) -> 0.451 | K241: =INDEX(Prop2022DistTar!$D$151:$D$162,K$33) -> 0.1236 | L241: =INDEX(Prop2022DistTar!$D$151:$D$162,L$33) -> 0 | M241: =INDEX(Prop2022DistTar!$D$151:$D$162,M$33) -> 0.5965 | N241: =INDEX(Prop2022DistTar!$D$151:$D$162,N$33) -> 1.7846
B243: Distribution volumes (actual) | C243: Fixed | D243: PkBlk1 | E243: PkBlk2 | F243: Shd1Blk1 | G243: Shd1Blk2 | H243: Shd2Blk1 | I243: Shd2Blk2 | J243: OffPkBlk1 | K243: OffPkBlk2 | M243: Rolling12 | N243: PD
B245: =B239 -> Existing (1 Jan - 31 Dec): Tariff L- Multinet Non-Residential | C245: =INDEX(Prop2022DistTar!$F$151:$F$162,C$33) -> 12 | D245: =INDEX(Prop2022DistTar!$F$151:$F$162,D$33) -> 6188.06 | E245: =INDEX(Prop2022DistTar!$F$151:$F$162,E$33) -> 15999.67 | F245: =INDEX(Prop2022DistTar!$F$151:$F$162,F$33) -> 1550.69 | G245: =INDEX(Prop2022DistTar!$F$151:$F$162,G$33) -> 3335.2 | H245: =INDEX(Prop2022DistTar!$F$151:$F$162,H$33) -> 1550.05 | I245: =INDEX(Prop2022DistTar!$F$151:$F$162,I$33) -> 3101.96 | J245: =INDEX(Prop2022DistTar!$F$151:$F$162,J$33) -> 8714.34 | K245: =INDEX(Prop2022DistTar!$F$151:$F$162,K$33) -> 13148.11 | L245: =INDEX(Prop2022DistTar!$F$151:$F$162,L$33) -> 0 | M245: =INDEX(Prop2022DistTar!$F$151:$F$162,M$33) -> 35.8 | N245: =INDEX(Prop2022DistTar!$F$151:$F$162,N$33) -> 25.81
B247: =B241 -> Proposed (1 Jan-31 Dec): Tariff L- Multinet Non-Residential | C247: =INDEX(Prop2022DistTar!$F$151:$F$162,C$33) -> 12 | D247: =INDEX(Prop2022DistTar!$F$151:$F$162,D$33) -> 6188.06 | E247: =INDEX(Prop2022DistTar!$F$151:$F$162,E$33) -> 15999.67 | F247: =INDEX(Prop2022DistTar!$F$151:$F$162,F$33) -> 1550.69 | G247: =INDEX(Prop2022DistTar!$F$151:$F$162,G$33) -> 3335.2 | H247: =INDEX(Prop2022DistTar!$F$151:$F$162,H$33) -> 1550.05 | I247: =INDEX(Prop2022DistTar!$F$151:$F$162,I$33) -> 3101.96 | J247: =INDEX(Prop2022DistTar!$F$151:$F$162,J$33) -> 8714.34 | K247: =INDEX(Prop2022DistTar!$F$151:$F$162,K$33) -> 13148.11 | L247: =INDEX(Prop2022DistTar!$F$151:$F$162,L$33) -> 0 | M247: =INDEX(Prop2022DistTar!$F$151:$F$162,M$33) -> 35.8 | N247: =INDEX(Prop2022DistTar!$F$151:$F$162,N$33) -> 25.81
B249: Distribution revenue | C249: Fixed | D249: PkBlk1 | E249: PkBlk2 | F249: Shd1Blk1 | G249: Shd1Blk2 | H249: Shd2Blk1 | I249: Shd2Blk2 | J249: OffPkBlk1 | K249: OffPkBlk2 | M249: Rolling12 | N249: PD
B251: =B245 -> Existing (1 Jan - 31 Dec): Tariff L- Multinet Non-Residential | C251: =INDEX(Prop2022DistTar!$H$151:$H$162,C$33) -> 0 | D251: =INDEX(Prop2022DistTar!$H$151:$H$162,D$33) -> 3970.259296 | E251: =INDEX(Prop2022DistTar!$H$151:$H$162,E$33) -> 2201.554592 | F251: =INDEX(Prop2022DistTar!$H$151:$H$162,F$33) -> 882.032472 | G251: =INDEX(Prop2022DistTar!$H$151:$H$162,G$33) -> 430.90784 | H251: =INDEX(Prop2022DistTar!$H$151:$H$162,H$33) -> 881.66844 | I251: =INDEX(Prop2022DistTar!$H$151:$H$162,I$33) -> 400.773232 | J251: =INDEX(Prop2022DistTar!$H$151:$H$162,J$33) -> 3930.16734 | K251: =INDEX(Prop2022DistTar!$H$151:$H$162,K$33) -> 1348.996086 | L251: =INDEX(Prop2022DistTar!$H$151:$H$162,L$33) -> 0 | M251: =INDEX(Prop2022DistTar!$H$151:$H$162,M$33) -> 7794.4655 | N251: =INDEX(Prop2022DistTar!$H$151:$H$162,N$33) -> 5619.384172
B253: =B247 -> Proposed (1 Jan-31 Dec): Tariff L- Multinet Non-Residential | C253: =INDEX(Prop2022DistTar!$G$151:$G$162,C$33) -> 0 | D253: =INDEX(Prop2022DistTar!$G$151:$G$162,D$33) -> 3970.259296 | E253: =INDEX(Prop2022DistTar!$G$151:$G$162,E$33) -> 2201.554592 | F253: =INDEX(Prop2022DistTar!$G$151:$G$162,F$33) -> 882.032472 | G253: =INDEX(Prop2022DistTar!$G$151:$G$162,G$33) -> 430.90784 | H253: =INDEX(Prop2022DistTar!$G$151:$G$162,H$33) -> 881.66844 | I253: =INDEX(Prop2022DistTar!$G$151:$G$162,I$33) -> 400.773232 | J253: =INDEX(Prop2022DistTar!$G$151:$G$162,J$33) -> 3930.16734 | K253: =INDEX(Prop2022DistTar!$G$151:$G$162,K$33) -> 1625.106396 | L253: =INDEX(Prop2022DistTar!$G$151:$G$162,L$33) -> 0 | M253: =INDEX(Prop2022DistTar!$G$151:$G$162,M$33) -> 7794.4655 | N253: =INDEX(Prop2022DistTar!$G$151:$G$162,N$33) -> 5619.384172
B255: Revenue | C255: Total
B256: =B251 -> Existing (1 Jan - 31 Dec): Tariff L- Multinet Non-Residential | C256: =SUM(C251:N251) -> 27460.20897
B257: =B253 -> Proposed (1 Jan-31 Dec): Tariff L- Multinet Non-Residential | C257: =SUM(C253:N253) -> 27736.31928
B259: Average price movement | C259: =IF(C257=0,"",C257/C256) -> 1.010054924
B261: =IF(C259="","",IF(C259<=$C$13,"REBALANCING CONTROL COMPLIANT","REBALANCING CONTROL BREACHED")) -> REBALANCING CONTROL COMPLIANT
B265: =Prop2022DistTar!B163 -> Tariff D - Multinet South Gippsland
C266: 1 | D266: 2
B267: Distribution tariff | C267: DemBlk1 | D267: DemBlk2
B268: ="Existing: "&Prop2022DistTar!C163 -> Existing: Tariff D - Multinet South Gippsland | C268: =INDEX(Prop2022DistTar!$E$164:$E$165,C266) -> 647.0819 | D268: =INDEX(Prop2022DistTar!$E$164:$E$165,D266) -> 110.0889
B269: ="Proposed: "&B265 -> Proposed: Tariff D - Multinet South Gippsland | C269: =INDEX(Prop2022DistTar!$D$164:$D$165,C266) -> 671.9697 | D269: =INDEX(Prop2022DistTar!$D$164:$D$165,D266) -> 114.3231
B271: Distribution volumes (actual) | C271: DemBlk1 | D271: DemBlk2
B272: =B268 -> Existing: Tariff D - Multinet South Gippsland | C272: =INDEX(Prop2022DistTar!$F$164:$F$165,C$266) -> 100 | D272: =INDEX(Prop2022DistTar!$F$164:$F$165,D$266) -> 62.2
B273: =B269 -> Proposed: Tariff D - Multinet South Gippsland | C273: =INDEX(Prop2022DistTar!$F$164:$F$165,C$266) -> 100 | D273: =INDEX(Prop2022DistTar!$F$164:$F$165,D$266) -> 62.2
B275: Distribution revenue | C275: DemBlk1 | D275: DemBlk2
B276: =B272 -> Existing: Tariff D - Multinet South Gippsland | C276: =INDEX(Prop2022DistTar!$H$164:$H$165,C266) -> 64708.19 | D276: =INDEX(Prop2022DistTar!$H$164:$H$165,D266) -> 6847.52958
B277: =B273 -> Proposed: Tariff D - Multinet South Gippsland | C277: =INDEX(Prop2022DistTar!$G$164:$G$165,C266) -> 67196.97 | D277: =INDEX(Prop2022DistTar!$G$164:$G$165,D266) -> 7110.89682
B279: Revenue | C279: Total
B280: =B276 -> Existing: Tariff D - Multinet South Gippsland | C280: =SUM(C276:D276) -> 71555.71958
B281: =B277 -> Proposed: Tariff D - Multinet South Gippsland | C281: =SUM(C277:D277) -> 74307.86682
B283: Average price movement | C283: =IF(C281=0,"",C281/C280) -> 1.038461597
B285: =IF(C283="","",IF(C283<=$C$13,"REBALANCING CONTROL COMPLIANT","REBALANCING CONTROL BREACHED")) -> REBALANCING CONTROL COMPLIANT

Sheet ARS
A1: ="Tariff Approval - "&'Model update'!B3 -> Tariff Approval - MultiNet
A3: Ancillary Reference Services (Exc GST)
B5: ='Model update'!$B$8 -> 2021 | C5: ='Model update'!$B$5 -> 2022
A6: Meter Investigation – High Account Investigation Between the hours of 8am and 4pm on a Business Day | B6: 150.56 | C6: =ROUND(B6*(1+'Model update'!$B$30),2) -> 156.35
A7: Meter Disconnection – Use of locks & plugs Between the hours of 8am and 4pm on a Business Day | B7: 52.74 | C7: =ROUND(B7*(1+'Model update'!$B$30),2) -> 54.77
A8: Meter Removal – Various Between the hours of 8am and 4pm on a Business Day | B8: 63.01 | C8: =ROUND(B8*(1+'Model update'!$B$30),2) -> 65.43
A9: Reconnect Between the hours of 8am and 4pm on a Business Day | B9: 44.46 | C9: =ROUND(B9*(1+'Model update'!$B$30),2) -> 46.17
A10: Special Meter Reads Between the hours of 8am and 4pm on a Business Day | B10: 6.76 | C10: =ROUND(B10*(1+'Model update'!$B$30),2) -> 7.02
A11: Installation of a second service valve in a pit and disconnect gas supply – paved (without traffic Mgt) | B11: 3361.17 | C11: =ROUND(B11*(1+'Model update'!$B$30),2) -> 3490.45
A12: Installation of a second service valve in a pit and disconnect gas supply – paved (with traffic Mgt) | B12: 4165.13 | C12: =ROUND(B12*(1+'Model update'!$B$30),2) -> 4325.33
A13: Installation of a second service valve in a pit and disconnect gas supply – unpaved (without traffic Mgt) | B13: 1595.31 | C13: =ROUND(B13*(1+'Model update'!$B$30),2) -> 1656.67
A14: Installation of a second service valve in a pit and disconnect gas supply – unpaved (with traffic Mgt) | B14: 2198.28 | C14: =ROUND(B14*(1+'Model update'!$B$30),2) -> 2282.83
A16: Note: Formula is as per AA2018-22, Part B, section 2, p9 : ART = ARTt-1 * (1+CPIt)
